{"text_format":"2","workbook":"xlsx","n_sheets":20,"sheets":["Záradék","Összesítő","Irtás, föld- és sziklamunka","Síkalapozás","Helyszíni beton és vasbeton mun","Fém- és könnyű épületszerkezet ","Ácsmunka","Vakolás és rabicolás","Szárazépítés","Hideg- és melegburkolatok készí","Fém nyílászáró és épületlakatos","Felületképzés","Szigetelés","Költségtérítések","Falazás és egyéb kőművesmunka","Elektromosenergia-ellátás, vill","Gyengeáram","Vízellátás, csatornázás","Fűtés, hűtés","Légtechnika"],"not_rendered":{"charts":0,"images":0,"macros":0,"external_links":0,"defined_names":19,"comments":0,"pivot_tables":0},"unopened":[],"bounds":{"document_bytes":16777216,"sheet_cells":100000,"run_cost":"one","rows_first":2000,"rows_last":500,"rows_between":2000,"halvings":0,"cell_chars":16384,"cell_head_chars":4096},"cells_cut":0,"cells_raw":0,"read":"whole","date_system":"1900"}

{"sheet":"Záradék","index":0,"n_rows":27,"n_cols":4,"rows_kept":27,"cut":false,"hidden":false,"merged":[[24,0,24,3],[25,0,25,3],[26,0,26,3],[10,0,10,3],[16,2,16,3],[17,2,17,3],[18,2,18,3],[21,2,21,3],[14,2,14,3],[15,2,15,3]]}
["Név :Szegedi Tudományegyetem           ",null,"                                       "]
["                                       ",null,"                                       "]
["Cím :6720 Szeged, Dugonics tér 13.     ",null," Kelt:      20.. év...........hó...nap "]
["                                       ",null," Szám         :033-22-001              "]
["                                       ",null," KSH besorolás:.....................   "]
["                                       ",null," Teljesítés:20.. év...........hó...nap "]
["A munka leírása:                       ",null," Készítette   :.....................   "]
["SZTE Mérnóki Kar Moszkvai krt. 5-7. szám alatti fermentációs labor            "]
["                                                                              "]
[]
["Költségvetés főösszesítő"]
["Megnevezés",null,"Anyagköltség","Díjköltség"]
["1. Építmény közvetlen költségei",null,{"$f":"ROUND(SUM(Összesítő!B14+Összesítő!B21+Összesítő!B26+Összesítő!B33),0)","v":0},{"$f":"ROUND(SUM(Összesítő!C14+Összesítő!C21+Összesítő!C26+Összesítő!C33),0)","v":0}]
["1.1 Közvetlen önköltség összesen",null,{"$f":"ROUND(C13,0)","v":0},{"$f":"ROUND(D13,0)","v":0}]
["2.1 Közvetlen önköltség nettó összesen",null,{"$f":"C14+D14","v":0},{"$f":"ROUND(D14,0)","v":0}]
["2.2 Tartalékkeret (5%)",null,{"$f":"ROUND(0.05*C15,0)","v":0},{"$f":"ROUND(D15,0)","v":0}]
["3.1 ÁFA vetítési alap",null,{"$f":"ROUND(C15+C16,0)","v":0}]
["3.2 Áfa",0.27,{"$f":"ROUND(C17*B18,0)","v":0}]
["4.  A munka ára",null,{"$f":"ROUND(C17+C18,0)","v":0}]
[]
[]
[null,null,"aláírás"]
[]
["Ajánlatttételi megjegyzések:"]
["A Mérnöki Kar által kiadott műszaki tartalom 1-21 pont figyelembevételével, valamint a helyszíni bejáráson elhangzott kiviteli igények és a rendelkezésünkre bocsátott terv és tervszerinti költségvetési kiírások összehangolása alapján készült a költségvetés."]
["A terv alapján készült költségvetési kiírásból kimaradt a VRV rendszerű fűtés-hűtés, helyette a bejáráson elhangzattak szerinti klíma berendezések lesznek költségelve."]
["A terv alapján készült költségvetési kiírásból kimaradt a komplett légkezelő berendezés, helyette a bejáráson elhangzattak szerinti költséghatékony CO mentesítő átszellőztető került árazásra, mely egy alsó légelszívásos, felső gravitációs levegő pótlásos elvű rendszer, melyet célszerű/szükséges terveztetni vagy a meglévő tervet módosítani."]

{"sheet":"Összesítő","index":1,"n_rows":33,"n_cols":3,"rows_kept":33,"cut":false,"hidden":false,"merged":[]}
["ÉPÍTÉSZET"]
["Munkanem megnevezése","Anyag összege","Díj összege"]
["Irtás, föld- és sziklamunka",{"$f":"'Irtás, föld- és sziklamunka'!H10","v":0},{"$f":"'Irtás, föld- és sziklamunka'!I10","v":0}]
["Síkalapozás",{"$f":"Síkalapozás!H4","v":0},{"$f":"Síkalapozás!I4","v":0}]
["Helyszíni beton és vasbeton munka",{"$f":"'Helyszíni beton és vasbeton mun'!H14","v":0},{"$f":"'Helyszíni beton és vasbeton mun'!I14","v":0}]
["Fém- és könnyű épületszerkezet szerelése",{"$f":"'Fém- és könnyű épületszerkezet '!H6","v":0},{"$f":"'Fém- és könnyű épületszerkezet '!I6","v":0}]
["Ácsmunka",{"$f":"Ácsmunka!H6","v":0},{"$f":"Ácsmunka!I6","v":0}]
["Vakolás és rabicolás",{"$f":"'Vakolás és rabicolás'!H10","v":0},{"$f":"'Vakolás és rabicolás'!I10","v":0}]
["Szárazépítés",{"$f":"Szárazépítés!H14","v":0},{"$f":"Szárazépítés!I14","v":0}]
["Hideg- és melegburkolatok készítése, aljzat előkészítés",{"$f":"'Hideg- és melegburkolatok készí'!H18","v":0},{"$f":"'Hideg- és melegburkolatok készí'!I18","v":0}]
["Fém nyílászáró és épületlakatos-szerkezet elhelyezése",{"$f":"'Fém nyílászáró és épületlakatos'!H14","v":0},{"$f":"'Fém nyílászáró és épületlakatos'!I14","v":0}]
["Felületképzés",{"$f":"Felületképzés!H18","v":0},{"$f":"Felületképzés!I18","v":0}]
["Szigetelés",{"$f":"Szigetelés!H18","v":0},{"$f":"Szigetelés!I18","v":0}]
["Összesen:",{"$f":"ROUND(SUM(B3:B13),0)","v":0},{"$f":"ROUND(SUM(C3:C13), 0)","v":0}]
[]
["ELEKTROMOSENERGIA ELLÁTÁS"]
["Munkanem megnevezése","Anyag összege","Díj összege"]
["Költségtérítések",{"$f":"Költségtérítések!H10","v":0},{"$f":"Költségtérítések!I10","v":0}]
["Falazás és egyéb kőművesmunka",{"$f":"'Falazás és egyéb kőművesmunka'!H8","v":0},{"$f":"'Falazás és egyéb kőművesmunka'!I8","v":0}]
["Elektromosenergia-ellátás, villanyszerelés",{"$f":"'Elektromosenergia-ellátás, vill'!H90","v":0},{"$f":"'Elektromosenergia-ellátás, vill'!I90","v":0}]
["Összesen:",{"$f":"ROUND(SUM(B18:B20),0)","v":0},{"$f":"ROUND(SUM(C18:C20), 0)","v":0}]
[]
["GYENGEÁRAM ÉS IT HÁLÓZAT"]
["Munkanem megnevezése","Anyag összege","Díj összege"]
["Gyengeáram",{"$f":"Gyengeáram!H35","v":0},{"$f":"Gyengeáram!I35","v":0}]
["Összesen:",{"$f":"ROUND(SUM(B25:B25),0)","v":0},{"$f":"ROUND(SUM(C25:C25), 0)","v":0}]
[]
["ÉPÜLETGÉPÉSZET"]
["Munkanem megnevezése","Anyag összege","Díj összege"]
["Vízellátás, csatornázás",{"$f":"'Vízellátás, csatornázás'!H148","v":0},{"$f":"'Vízellátás, csatornázás'!I148","v":0}]
["Fűtés, hűtés",{"$f":"'Fűtés, hűtés'!H68","v":0},{"$f":"'Fűtés, hűtés'!I68","v":0}]
["Légtechnika",{"$f":"Légtechnika!H108","v":0},{"$f":"Légtechnika!I108","v":0}]
["Összesen:",{"$f":"ROUND(SUM(B30:B32),0)","v":0},{"$f":"ROUND(SUM(C30:C32), 0)","v":0}]

{"sheet":"Irtás, föld- és sziklamunka","index":2,"n_rows":10,"n_cols":9,"rows_kept":10,"cut":false,"hidden":false,"merged":[]}
["Ssz.","Tételszám","Tétel szövege","Menny.","Egység","Anyag egységár","Díj egységre","Anyag összesen","Díj összesen"]
[1,"21-003-10.1","Letaposott-szennyezett agyag, illetve földpadló, feltöltés bontása, kihordása depóniába (meglévő létesítmények padozata), száraz, földnedves",15,"m3",null,null,{"$f":"ROUND(D2*F2, 0)","v":0},{"$f":"ROUND(D2*G2, 0)","v":0}]
[]
[2,"21-011-11.1","Építési törmelék konténeres elszállítása, lerakása, lerakóhelyi díjjal, 3,0 m³-es konténerbe",3,"db",null,null,{"$f":"ROUND(D4*F4, 0)","v":0},{"$f":"ROUND(D4*G4, 0)","v":0}]
[]
[3,"21-011-11.3","Építési törmelék konténeres elszállítása, lerakása, lerakóhelyi díjjal, 5,0 m³-es konténerbe",10,"db",null,null,{"$f":"ROUND(D6*F6, 0)","v":0},{"$f":"ROUND(D6*G6, 0)","v":0}]
[]
[4,"21-011-12","Munkahelyi depóniából építési törmelék konténerbe rakása,  kézi erővel, önálló munka esetén elszámolva, konténer szállítás nélkül",40,"m3",null,null,{"$f":"ROUND(D8*F8, 0)","v":0},{"$f":"ROUND(D8*G8, 0)","v":0}]
[]
[null,null,"Munkanem összesen:",{"$nulls":4},{"$f":"ROUND(SUM(H2:H9),0)","v":0},{"$f":"ROUND(SUM(I2:I9),0)","v":0}]

{"sheet":"Síkalapozás","index":3,"n_rows":4,"n_cols":9,"rows_kept":4,"cut":false,"hidden":false,"merged":[]}
["Ssz.","Tételszám","Tétel szövege","Menny.","Egység","Anyag egységár","Díj egységre","Anyag összesen","Díj összesen"]
[1,"23-003-2-0242210","Vasbeton sáv-, talp- lemezalap készítése SZERELŐBETON KÉSZÍTÉS szivattyús technológiával, .....minőségű betonból C25/30 - XC2 - 16 - F3 - CEM 32,5, m = 6,6 finomsági modulussal",12,"m3",null,null,{"$f":"ROUND(D2*F2, 0)","v":0},{"$f":"ROUND(D2*G2, 0)","v":0}]
[]
[null,null,"Munkanem összesen:",{"$nulls":4},{"$f":"ROUND(SUM(H2:H3),0)","v":0},{"$f":"ROUND(SUM(I2:I3),0)","v":0}]

{"sheet":"Helyszíni beton és vasbeton mun","index":4,"n_rows":14,"n_cols":9,"rows_kept":14,"cut":false,"hidden":false,"merged":[]}
["Ssz.","Tételszám","Tétel szövege","Menny.","Egység","Anyag egységár","Díj egységre","Anyag összesen","Díj összesen"]
[1,"31-000-13.4","Beton aljzatok, járdák bontása 10 cm vastagságig, acélháló erősítésű kavicsbetonból",70,"m2",null,null,{"$f":"ROUND(D2*F2, 0)","v":0},{"$f":"ROUND(D2*G2, 0)","v":0}]
[]
[2,"31-000-14.4","Beton aljzatok, járdák bontása 10 cm vastagság felett, acélháló erősítésű kavicsbetonból",7,"m3",null,null,{"$f":"ROUND(D4*F4, 0)","v":0},{"$f":"ROUND(D4*G4, 0)","v":0}]
[]
[3,"31-001-2-0452004","Hegesztett betonacél háló szerelése tartószerkezetbe FERALPI Sp8K1515 építési síkháló; 5,00 x 2,15 m; 150 x 150 mm osztással Ø 8,00 / 8,00 B500A (BHB55.50)",1.1000000000000001,"t",null,null,{"$f":"ROUND(D6*F6, 0)","v":0},{"$f":"ROUND(D6*G6, 0)","v":0}]
[]
[4,"31-031-1.3.9","Helyszínen kevert cementbázis, kontaktesztrich, C20 osztályban, Kontakt- vagy csúsztatott esztrich készítése, helyszínen kevert, cementbázisú esztrichből, C20 szilárdsági osztálynak megfelelően\n15 cm vastagságig (több irányú lejtbeton készítése laboraljzatnak)",70,"m2",null,null,{"$f":"ROUND(D8*F8, 0)","v":0},{"$f":"ROUND(D8*G8, 0)","v":0}]
[]
[5,"31-032-4.1.2.1-0212502","Úsztatott esztrich (hő- vagy hangszigetelésen) kézi feldolgozással, cementbázisú esztrichből C20 szilárdsági osztálynak megfelelően, 5 cm vastagságban Cemix Estrich ZE20 cementesztrich, gyárilag előkevert szárazhabarcs, Cikkszám: K00619621 (födémek betonozása)",12.5,"m2",null,null,{"$f":"ROUND(D10*F10, 0)","v":0},{"$f":"ROUND(D10*G10, 0)","v":0}]
[]
[6,"31-032-4.1.2.1-0212502","Úsztatott esztrich kézi feldolgozással, cementbázisú esztrichből C20 szilárdsági osztálynak megfelelően,\n10 cm vastagságban Cemix Estrich ZE20 cementesztrich, gyárilag előkevert szárazhabarcs, (emelvény a hűtőknek)",7,"m2",null,null,{"$f":"ROUND(D12*F12, 0)","v":0},{"$f":"ROUND(D12*G12, 0)","v":0}]
[]
[null,null,"Munkanem összesen:",{"$nulls":4},{"$f":"ROUND(SUM(H2:H13),0)","v":0},{"$f":"ROUND(SUM(I2:I13),0)","v":0}]

{"sheet":"Fém- és könnyű épületszerkezet ","index":5,"n_rows":6,"n_cols":9,"rows_kept":6,"cut":false,"hidden":false,"merged":[]}
["Ssz.","Tételszám","Tétel szövege","Menny.","Egység","Anyag egységár","Díj egységre","Anyag összesen","Díj összesen"]
[1,"34-001-9.2-0000133","Egyéb épület acélszerkezetek, (T2 rétegrendben, É.10-es tervlap) födém áttörésekbe 60/60/4 zártszelvény váz szerelése, rögzítőelemekkel (festés külön tételben)",0.52,"t",null,null,{"$f":"ROUND(D2*F2, 0)","v":0},{"$f":"ROUND(D2*G2, 0)","v":0}]
[]
[2,"34-001-9.2-0000137","Egyéb épület acélszerkezetek, (T2 rétegrendben, É.10-es tervlap) klímakamra fal és födém szerkezetének sarkaiba acélzártszelvény váz 80/80/5 szerelése, rögzítő elemekkel, (festés külön tételben)",0.34,"t",null,null,{"$f":"ROUND(D4*F4, 0)","v":0},{"$f":"ROUND(D4*G4, 0)","v":0}]
[]
[null,null,"Munkanem összesen:",{"$nulls":4},{"$f":"ROUND(SUM(H2:H5),0)","v":0},{"$f":"ROUND(SUM(I2:I5),0)","v":0}]

{"sheet":"Ácsmunka","index":6,"n_rows":6,"n_cols":9,"rows_kept":6,"cut":false,"hidden":false,"merged":[]}
["Ssz.","Tételszám","Tétel szövege","Menny.","Egység","Anyag egységár","Díj egységre","Anyag összesen","Díj összesen"]
[1,"35-005-1.1.2-0211007","Vízálló, műgyantával stabilizált faforgácslap (OSB) elhelyezése, T1 - klímakamra tető vágott (nútolatlan) kivitelben, függőleges vagy vízszintes felületen Vízálló faforgácslap (OSB), 2500x1250x22 mm méretű",7.3,"m2",null,null,{"$f":"ROUND(D2*F2, 0)","v":0},{"$f":"ROUND(D2*G2, 0)","v":0}]
[]
[2,"35-005-1.1.2-0211007","Sávalap egyoldalas zsaluzása fa zsaluzattal, max. 0,8 m magasságig",7,"m2",null,null,{"$f":"ROUND(D4*F4, 0)","v":0},{"$f":"ROUND(D4*G4, 0)","v":0}]
[]
[null,null,"Munkanem összesen:",{"$nulls":4},{"$f":"ROUND(SUM(H2:H5),0)","v":0},{"$f":"ROUND(SUM(I2:I5),0)","v":0}]

{"sheet":"Vakolás és rabicolás","index":7,"n_rows":10,"n_cols":9,"rows_kept":10,"cut":false,"hidden":false,"merged":[]}
["Ssz.","Tételszám","Tétel szövege","Menny.","Egység","Anyag egységár","Díj egységre","Anyag összesen","Díj összesen"]
[1,"36-000-1.1.1","Vakolat leverése oldalfalról vagy mennyezetről 1,5 cm vastagságig falazó, cementes mészhabarcs )labor és előtér)",153.5,"m2",null,null,{"$f":"ROUND(D2*F2, 0)","v":0},{"$f":"ROUND(D2*G2, 0)","v":0}]
[]
[2,"36-002-11.1-0414764","Tapadóhíd képzése gyári zsákos gúzanyaggal, kézi erővel Cemix KONTAKT VS PLUS (Kontakt VS Squash) gúzoló, Csz: K00225011",153.5,"m2",null,null,{"$f":"ROUND(D4*F4, 0)","v":0},{"$f":"ROUND(D4*G4, 0)","v":0}]
[]
[3,"36-003-1.1.1.1.1-0414710","Oldalfalvakolat készítése, kézi felhordással, zsákos kiszerelésű szárazhabarcsból, sima, normál mész-cement vakolat, 1 cm vastagságban Cemix PRÉMIUM kézi alapvakolat, Cikkszám: K00215011",153.5,"m2",null,null,{"$f":"ROUND(D6*F6, 0)","v":0},{"$f":"ROUND(D6*G6, 0)","v":0}]
[]
[4,"36-003-1.1.1.1.2-0414710","Oldalfalvakolat készítése, kézi felhordással, zsákos kiszerelésű szárazhabarcsból, sima, normál mész-cement vakolat, többlet minden további 1 cm vastagságban Cemix PRÉMIUM kézi alapvakolat, Cikkszám: K00215011",153.5,"m2",null,null,{"$f":"ROUND(D8*F8, 0)","v":0},{"$f":"ROUND(D8*G8, 0)","v":0}]
[]
[null,null,"Munkanem összesen:",{"$nulls":4},{"$f":"ROUND(SUM(H2:H9),0)","v":0},{"$f":"ROUND(SUM(I2:I9),0)","v":0}]

{"sheet":"Szárazépítés","index":8,"n_rows":14,"n_cols":9,"rows_kept":14,"cut":false,"hidden":false,"merged":[]}
["Ssz.","Tételszám","Tétel szövege","Menny.","Egység","Anyag egységár","Díj egységre","Anyag összesen","Díj összesen"]
[1,"39-001-22.1.3-0120089","Favázszerkezetre szerelt válaszfal 2 x 1 rtg. AQUAPANEL, (F1 rétegrend szerint) hőszigeteléssel, csavarfejek és illesztések glettelve (Q2), egyszeres, 40 cm-enként 8/5-ös fapallóvázra szerelve AQUAPANEL 1 rtg. gipszkarton + 80 mm szigetelőanyag",15.3,"m2",null,null,{"$f":"ROUND(D2*F2, 0)","v":0},{"$f":"ROUND(D2*G2, 0)","v":0}]
[]
[2,"39-003-1.1.2.2.1-0210211","Szerelt gipszkarton álmennyezet fém vázszerkezetre (duplasoros), T3 rétegrend szerint választható függesztéssel, csavarfejek és illesztések alapglettelve (Q2 minőségben),  nem látszó bordázattal, 50 cm bordatávolsággal (CD50/27), 10 m² összefüggő felület felett, 1 rtg. impregnált 12,5 mm vtg. gipszkarton borítással KNAUF H2 13 impregnált építőlemez, 12,5 mm HRAK 1250/2000, függesztő huzallal, Cikkszám: 36307120",61.3,"m2",null,null,{"$f":"ROUND(D4*F4, 0)","v":0},{"$f":"ROUND(D4*G4, 0)","v":0}]
[]
[3,"39-003-2.2.1.3.1-1120031","Szerelt gipszkarton álmennyezet azonos szintbeli fém vázszerkezetre (egysoros kivitel), csavarfejek és illesztések alapglettelve (Q2 minőségben),  nem látszó bordázattal, 40 cm bordatávolsággal (fatartó szerkezettel T1-es rétegrend szerint), 10 m² összefüggő felületig, 1 rtg. tűzgátló 12,5 mm vtg. gipszkarton borítással Knauf VidiFire A1 gipszrostlemez tűzgátló építőlemez 12,5 mm + 80 mm szigetelőanyag",7.3,"m2",null,null,{"$f":"ROUND(D6*F6, 0)","v":0},{"$f":"ROUND(D6*G6, 0)","v":0}]
[]
[4,"39-005-2.1.3-0120032","Szabadon álló előtétfal készítése, (F1 rétegrend szerint) üveggyapot szigetelőanyag kitöltéssel, 1 rtg. gipszkarton borítással, 40 cm-enként 8/5-ös fapallóvázra szerelve AQUAPANEL 1 rtg. gipszkarton + 80 mm szigetelőanyag",13.9,"m2",null,null,{"$f":"ROUND(D8*F8, 0)","v":0},{"$f":"ROUND(D8*G8, 0)","v":0}]
[]
[5,"39-005-4.1-0120032","Födémáttörés megszüntetése, (T2 rétegrend szerint) 60/60/4-es zártszelvény váz készítése felületkezelésel, (zártszelvény váz külön tételben) direkt függesztővel, CD profil vázzal, zártszelvényvázra két rtg. 1,25 mm Knauf VidiFire A1 gipszrostlemez CD vázra egy rtg. 1,25 mm Knauf gipszkarton E/30",11.9,"m2",null,null,{"$f":"ROUND(D10*F10, 0)","v":0},{"$f":"ROUND(D10*G10, 0)","v":0}]
[]
[6,"39-005-4.1-","Egyedi készítésű reviziós ajtók szerkezet, mely kartonozható borítású, légkezelő és egyéb álmennyezet felett lévő berendezések karbantartásához, kezeléséhez, különböző méretben.",5,"db",null,null,{"$f":"ROUND(D12*F12, 0)","v":0},{"$f":"ROUND(D12*G12, 0)","v":0}]
[]
[null,null,"Munkanem összesen:",{"$nulls":4},{"$f":"ROUND(SUM(H2:H13),0)","v":0},{"$f":"ROUND(SUM(I2:I13),0)","v":0}]

{"sheet":"Hideg- és melegburkolatok készí","index":9,"n_rows":18,"n_cols":9,"rows_kept":18,"cut":false,"hidden":false,"merged":[]}
["Ssz.","Tételszám","Tétel szövege","Menny.","Egység","Anyag egységár","Díj egységre","Anyag összesen","Díj összesen"]
[1,"42-000-2.1","Lapburkolatok bontása, padlóburkolat bármely méretű kőagyag, mozaik vagy tört mozaik (NOVA) lapból",80.600000000000009,"m2",null,null,{"$f":"ROUND(D2*F2, 0)","v":0},{"$f":"ROUND(D2*G2, 0)","v":0}]
[]
[2,"42-000-2.2","Lapburkolatok bontása, fal-, pillér- és oszlopburkolat, bármely méretű mozaik, kőagyag és csempe",97.7,"m2",null,null,{"$f":"ROUND(D4*F4, 0)","v":0},{"$f":"ROUND(D4*G4, 0)","v":0}]
[]
[3,"42-000-6.2","Egyéb bontások, ragasztott padlóburkolat aljzatának portalanítása, a maradék ragasztószer oldószeres eltávolítása, maratása, felkaparása",11.9,"m2",null,null,{"$f":"ROUND(D6*F6, 0)","v":0},{"$f":"ROUND(D6*G6, 0)","v":0}]
[]
[4,"42-011-1.1.1.1-0313027","Fal-, pillér és oszlopburkolat hordozószerkezetének felületelőkészítése beltérben, tégla, beton és vakolt alapfelületen, felületelőkészítő alapozó és tapadóhíd felhordása egy rétegben MAPEI Primer G műgyanta bázisú, diszperziós alapozó, Csz: 020110 (labor és előtér)",153.5,"m2",null,null,{"$f":"ROUND(D8*F8, 0)","v":0},{"$f":"ROUND(D8*G8, 0)","v":0}]
[]
[5,"42-011-2.1.1.1-0313841","Padlóburkolat hordozószerkezetének felületelőkészítése beltérben, beton alapfelületen felületelőkészítő alapozó és tapadóhíd felhordása egy rétegben MAPEI Eco Prim Grip akrilgyanta-bázisú, szilikahomok tartalmú vizesdiszperziós alapozó, Csz: 1560105",79.300000000000011,"m2",null,null,{"$f":"ROUND(D10*F10, 0)","v":0},{"$f":"ROUND(D10*G10, 0)","v":0}]
[]
[6,"42-011-2.1.1.3.1-0313032","Padlóburkolat hordozószerkezetének felületelőkészítése beltérben, beton alapfelületen simító felületkiegyenlítés készítése 5 mm átlagos rétegvastagságban MAPEI Ultraplan Renovation önterülő aljzatkiegyenlítő, Csz: 0124325",79.300000000000011,"m2",null,null,{"$f":"ROUND(D12*F12, 0)","v":0},{"$f":"ROUND(D12*G12, 0)","v":0}]
[]
[7,"42-012-1.1.1.1.1.3-0313111","Fal-, pillér-, oszlop- és lábazatburkolat készítése beltérben, tégla, beton, vakolt alapfelületen, mázas kerámiával, kötésben vagy hálósan, 3-5 mm vtg. ragasztóba rakva, 1-10 mm fugaszélességgel, 25x25 -  40x40 cm közötti lapmérettel MAPEI Adesilex P9 C2TE cementkötésű ragasztóhabarcs, szürke, Csz: 006125 és Ultracolor Plus fugázó, fehér, Csz: 6010002",97.7,"m2",null,null,{"$f":"ROUND(D14*F14, 0)","v":0},{"$f":"ROUND(D14*G14, 0)","v":0}]
[]
[8,"42-022-1.1.1.2.1.2-0313022","Padlóburkolat készítése, beltérben, tégla, beton, vakolt alapfelületen, gres, kőporcelán lappal, kötésben vagy hálósan, 3-5 mm vtg. ragasztóba rakva, 1-10 mm fugaszélességgel, 45x45 - 60x60 cm közötti lapmérettel MAPEI Ultralite S2 C2E S2 egykomponensű, cementes ragasztóhabarcs, szürke, Csz: 1201515 MAPEI Ultracolor Plus fugázóhabarcs, fehér, Csz: 6010002",79.300000000000011,"m2",null,null,{"$f":"ROUND(D16*F16, 0)","v":0},{"$f":"ROUND(D16*G16, 0)","v":0}]
[]
[null,null,"Munkanem összesen:",{"$nulls":4},{"$f":"ROUND(SUM(H2:H17),0)","v":0},{"$f":"ROUND(SUM(I2:I17),0)","v":0}]

{"sheet":"Fém nyílászáró és épületlakatos","index":10,"n_rows":14,"n_cols":9,"rows_kept":14,"cut":false,"hidden":false,"merged":[]}
["Ssz.","Tételszám","Tétel szövege","Menny.","Egység","Anyag egységár","Díj egységre","Anyag összesen","Díj összesen"]
[1,"45-000-1.1.3","Fém nyílászáró szerkezetek bontása, ajtó, ablak, kapu, 2,01 m² felület felett",28.6,"m2",null,null,{"$f":"ROUND(D2*F2, 0)","v":0},{"$f":"ROUND(D2*G2, 0)","v":0}]
[]
[2,"44-011-1.1.1-","Műanyag kültéri nyílászárók elhelyezése előre kihagyott falnyílásba, hőszigetelt, fokozott légzárású bejárati ajtó, tömítés nélkül (szerelvényezve, finom beállítással), 5,01-10,00 m kerület között\n kifelé nyíló üvegezett kétszárnyú bejárati ajtó felülvilágítóval, 5 kamrás PROFINE 76 PVC profil, Uw<1,15 W/m2K, ajtó mérete: 210 x 210 cm, felülvilágító mérete: 210 x 95 cm,",1,"db",null,null,{"$f":"ROUND(D4*F4, 0)","v":0},{"$f":"ROUND(D4*G4, 0)","v":0}]
[]
[3,"44-011-1.1.1-","Műanyag kültéri nyílászárók elhelyezése előre kihagyott falnyílásba, hőszigetelt, fokozott légzárású bejárati ajtó, tömítés nélkül (szerelvényezve, finom beállítással), 5,01-10,00 m kerület között\n kifelé nyíló üvegezett kétszárnyú bejárati ajtó felülvilágítóval, 5 kamrás PROFINE 76 PVC profil, Uw<1,15 W/m2K, ajtó mérete: 210 x 210 cm, felülvilágító mérete: 210 x 150 cm,",1,"db",null,null,{"$f":"ROUND(D6*F6, 0)","v":0},{"$f":"ROUND(D6*G6, 0)","v":0}]
[]
[4,"44-012-1.1.2.6.2-","Műanyag kültéri nyílászárók, hőszigetelt, fokozott légzárású ablak elhelyezése előre kihagyott falnyílásba, tömítés nélkül (szerelvényezve, finombeállítással), 4,00 m kerület felett\nötkamrás profil, kétszárnyú vagy többszárnyú, tokosztott bukó-nyíló/bukó-nyíló, felülvilágítóval (stadurpaneles)\n 5 kamrás PROFINE 76 PVC profil, Uw<1,15 W/m2K, ablak mérete: 210 x 210 cm, felülvilágító mérete: 210 x 70 cm",1,"db",null,null,{"$f":"ROUND(D8*F8, 0)","v":0},{"$f":"ROUND(D8*G8, 0)","v":0}]
[]
[5,"44-012-1.1.2.6.2-","Műanyag kültéri nyílászárók, hőszigetelt, fokozott légzárású ablak elhelyezése előre kihagyott falnyílásba, tömítés nélkül (szerelvényezve, finombeállítással), 4,00 m kerület felett\nötkamrás profil, kétszárnyú vagy többszárnyú, tokosztott bukó-nyíló/bukó-nyíló, felülvilágítóval (stadurpaneles)\n 5 kamrás PROFINE 76 PVC profil, Uw<1,15 W/m2K, ablak mérete: 210 x 210 cm, felülvilágító mérete: 210 x 70 cm",1,"db",null,null,{"$f":"ROUND(D10*F10, 0)","v":0},{"$f":"ROUND(D10*G10, 0)","v":0}]
[]
[6,"44-012-1.1.2.6.2-","Műanyag beltéri nyílászárók, hőszigetelt, fokozott légzárású ajtó elhelyezése előre kihagyott könnyűszerkezetes nyílásba, tömítés nélkül (szerelvényezve, finombeállítással), 4,00 m kerület felett\nötkamrás profil, egyszárnyú nyíló, 24mm-es hőszigetelt tömörpaneles  5 kamrás PVC profil, Uw<1,15 W/m2K, ajtó mérete: 90 x 210 cm,",1,"db",null,null,{"$f":"ROUND(D12*F12, 0)","v":0},{"$f":"ROUND(D12*G12, 0)","v":0}]
[]
[null,null,"Munkanem összesen:",{"$nulls":4},{"$f":"ROUND(SUM(H2:H13),0)","v":0},{"$f":"ROUND(SUM(I2:I13),0)","v":0}]

{"sheet":"Felületképzés","index":11,"n_rows":18,"n_cols":9,"rows_kept":18,"cut":false,"hidden":false,"merged":[]}
["Ssz.","Tételszám","Tétel szövege","Menny.","Egység","Anyag egységár","Díj egységre","Anyag összesen","Díj összesen"]
[1,"47-000-1.21.7.1.1-0415512","Belső festéseknél felület előkészítése, részmunkák; glettelés, gipszes glettel, vakolt felületen, tagolatlan felületen Baumit FinoBello, gipszes glett, 0-10 mm-es vastagságban, Cikkszám: 951720",193,"m2",null,null,{"$f":"ROUND(D2*F2, 0)","v":0},{"$f":"ROUND(D2*G2, 0)","v":0}]
[]
[2,"47-000-4.4.2.1-0136106","Acélfelületek mázolásának előkészítő és részmunkái; acélszerkezeten, nagyobb acélfelületen, zsírtalanítás Trinát szintetikus hígító 1002, EAN: 5995061571956",25,"m2",null,null,{"$f":"ROUND(D4*F4, 0)","v":0},{"$f":"ROUND(D4*G4, 0)","v":0}]
[]
[3,"47-010-1.3.1-0419508","Normál nem egyenletes nedvszívóképességű ásványi falfelületek alapozása, felületmegerősítése, szilikon-bázisú alapozóval, tagolatlan felületen POLI-FARBE Inntaler szilikon mélyalapozó páraáteresztő",133,"m2",null,null,{"$f":"ROUND(D6*F6, 0)","v":0},{"$f":"ROUND(D6*G6, 0)","v":0}]
[]
[4,"47-010-1.3.1-","Normál nem egyenletes nedvszívóképességű ásványi falfelületek alapozása, felületmegerősítése, szilikon-bázisú alapozóval, tagolatlan felületen Valmor Air Flow lélegző fehér beltéri alapozó",60,"m2",null,null,{"$f":"ROUND(D8*F8, 0)","v":0},{"$f":"ROUND(D8*G8, 0)","v":0}]
[]
[5,"47-011-15.1.1.1-0160001","Diszperziós festés (két rétegben)\nműanyag bázisú vizes-diszperziós \nfehér vagy gyárilag színezett festékkel,\núj vagy régi lekapart, előkészített alapfelületen,\nvakolaton, két rétegben,\ntagolatlan sima felületen\nPOLI-FARBE  diszperziós beltéri falfesték, mosható, csepegésmentes, fehér",133,"m2",null,null,{"$f":"ROUND(D10*F10, 0)","v":0},{"$f":"ROUND(D10*G10, 0)","v":0}]
[]
[6,"47-011-15.1.1.1-","Diszperziós festés (két rétegben)\nműanyag bázisú vizes-diszperziós \nfehér vagy gyárilag színezett festékkel,\núj vagy régi lekapart, előkészített alapfelületen,\nvakolaton, két rétegben,\ntagolatlan sima felületen\nValmor Air Flow lélegző fehér beltéri festékkel",60,"m2",null,null,{"$f":"ROUND(D12*F12, 0)","v":0},{"$f":"ROUND(D12*G12, 0)","v":0}]
[]
[7,"47-021-12.2.1-0419523","Korróziógátló alapozás nagyméretű acélszerkezeten, műgyanta kötőanyagú, oldószertartalmú festékkel POLI-FARBE Cellkolor univerzális korróziógátló alapozó fehér, szürke, oxid-vörös",25,"m2",null,null,{"$f":"ROUND(D14*F14, 0)","v":0},{"$f":"ROUND(D14*G14, 0)","v":0}]
[]
[8,"47-021-31.2.1-0160016","Acélfelületek átvonó festése acélszerkezeten, nagyobb acélfelületen műgyanta kötőanyagú, oldószeres festékkel POLI-FARBE Cellkolor oldószeres selyemfényű zománc fehér",25,"m2",null,null,{"$f":"ROUND(D16*F16, 0)","v":0},{"$f":"ROUND(D16*G16, 0)","v":0}]
[]
[null,null,"Munkanem összesen:",{"$nulls":4},{"$f":"ROUND(SUM(H2:H17),0)","v":0},{"$f":"ROUND(SUM(I2:I17),0)","v":0}]

{"sheet":"Szigetelés","index":12,"n_rows":18,"n_cols":9,"rows_kept":18,"cut":false,"hidden":false,"merged":[]}
["Ssz.","Tételszám","Tétel szövege","Menny.","Egység","Anyag egységár","Díj egységre","Anyag összesen","Díj összesen"]
[1,"48-004-1.3.3.1.1-0095515","Üzemi-használati víz elleni szigetelés; Padlószigetelés, kis vagy közepes használati intenzitás esetén, egy rétegben, minimum 1,0 mm vastag lágy PVC lemezzel, átlapolások forrólevegős hegesztésével BAUDER THERMOFOL U 24 PVC-P lemez leterhelt és mechanikus rögzítéshez, világosszürke, 2,4 mm, 1000 N/50 mm PES háló, -30 °C, nyúlás 19 %, FLL, E osztály, Broof(t1), Csz.: 6124 0000",68,"m2",null,null,{"$f":"ROUND(D2*F2, 0)","v":0},{"$f":"ROUND(D2*G2, 0)","v":0}]
[]
[2,"48-004-1.45.2-0315034","Üzemi-használati víz elleni szigetelés; Védőrétege műanyag dombornyomott lemezzel,  rögzítés nélkül (rögzítés külön tételben), vízszintes felületen, HDPE  anyagú, kis dombormagasságú lemez Schlüter-TROBA-PLUS8 12,5 x 1,0 m drainlemez, kétrétegű H=8 mm, Rendelési szám: TROBA-PLUS8",68,"m2",null,null,{"$f":"ROUND(D4*F4, 0)","v":0},{"$f":"ROUND(D4*G4, 0)","v":0}]
[]
[3,"48-004-1.49.1-0413485","Üzemi-használati víz elleni szigetelés; Védőréteg lágy PVC vízszigetelésnél, egy rétegben, minimum 1,0 mm vastag szöveterősítés nélküli  félkemény PVC lemezzel, átlapolások forrólevegős pontozásos hegesztésével, vízszintes felületen SICOFOL SK 1 mm szöveterősítés nélküli félkemény PVC védőréteg",68,"m2",null,null,{"$f":"ROUND(D6*F6, 0)","v":0},{"$f":"ROUND(D6*G6, 0)","v":0}]
[]
[4,"48-007-41.1.1.1.1-0092107","Födém; (T2 rétegrend szerint) Padló hő-, hangszigetelő anyag elhelyezése, vízszintes felületen, aljzatbeton alá, úsztató rétegként vagy talajon fekvő padlószerkezetben, szálas szigetelőanyaggal (üveggyapot, kőzetgyapot) ROCKWOOL Steprock ND lépés-hangszigetelő lemez 1000x600x50 mm",12.5,"m2",null,null,{"$f":"ROUND(D8*F8, 0)","v":0},{"$f":"ROUND(D8*G8, 0)","v":0}]
[]
[5,"48-007-41.1.1.1.2-0113084","Födém; LEEJTÉS KÉPZÉS SZIGETELÉSSEL Padló hő-, hangszigetelő anyag elhelyezése, vízszintes felületen, aljzatbeton alá, úsztató rétegként vagy talajon fekvő padlószerkezetben, expandált polisztirolhab lemezzel AUSTROTHERM AT-N200 expandált polisztirolhab hőszigetelő lemez, 1000x500x 40 mm",68,"m2",null,null,{"$f":"ROUND(D10*F10, 0)","v":0},{"$f":"ROUND(D10*G10, 0)","v":0}]
[]
[6,"48-007-41.1.5.1-0427206","Födém; T1 - klímakamra tető Padló hő-, hangszigetelő anyag elhelyezése, vízszintes felületen, nem járható födémre (zárófödém, padlásfödém), szálas szigetelő anyaggal (üveggyapot, kőzetgyapot) FibranGeo BP 50-L 2000x1200x80 táblás kőzetgyapot hőszigetelő anyag, lépcsős élképzéssel, 50 kPa nyomószilárdsággal, λD=0,037 (W/mK)",7.3,"m2",null,null,{"$f":"ROUND(D12*F12, 0)","v":0},{"$f":"ROUND(D12*G12, 0)","v":0}]
[]
[7,"48-007-41.1.5.3-0110117","Födém; T1 - klímakamta tető Padló hő-, hangszigetelő anyag elhelyezése, vízszintes felületen, nem járható födémre (zárófödém, padlásfödém), extrudált polisztirolhab lemezzel RAVATHERM XPS 300SL (ROOFMATE SL-A) 100 extrudált polisztirolhab lemez, lépcsős élképzéssel, 100x600x1250 mm, λD=0,034 W/mK, RTH300SL100",7.3,"m2",null,null,{"$f":"ROUND(D14*F14, 0)","v":0},{"$f":"ROUND(D14*G14, 0)","v":0}]
[]
[8,"48-007-41.2.3-0113378","Födém; Padló peremszigetelés elhelyezése úsztatott aljzatbeton esetén, extrudált polietilén habszalaggal AUSTROTHERM AT-PE sáv 5/100 mm",50,"m",null,null,{"$f":"ROUND(D16*F16, 0)","v":0},{"$f":"ROUND(D16*G16, 0)","v":0}]
[]
[null,null,"Munkanem összesen:",{"$nulls":4},{"$f":"ROUND(SUM(H2:H17),0)","v":0},{"$f":"ROUND(SUM(I2:I17),0)","v":0}]

{"sheet":"Költségtérítések","index":13,"n_rows":10,"n_cols":9,"rows_kept":10,"cut":false,"hidden":false,"merged":[]}
["Ssz.","Tételszám","Tétel szövege","Menny.","Egység","Anyag egységár","Díj egységre","Anyag összesen","Díj összesen"]
[1,"19-010-1.11.1.4","Általános teendők megvalósulás szakaszában, ellenőrző mérések, tervezői műszaki vezetés a kivitelezés helyszínén",2,"óra",null,null,{"$f":"ROUND(D2*F2, 0)","v":0},{"$f":"ROUND(D2*G2, 0)","v":0}]
[]
[2,"19-010-1.21.1","Általános teendők befejezés szakaszában, átadás - átvétel, jegyzőkönyv elkészítése",1,"db",null,null,{"$f":"ROUND(D4*F4, 0)","v":0},{"$f":"ROUND(D4*G4, 0)","v":0}]
[]
[3,"19-010-1.21.2","Általános teendők befejezés szakaszában, megvalósulási tervdokumentáció elkészítése",1,"db",null,null,{"$f":"ROUND(D6*F6, 0)","v":0},{"$f":"ROUND(D6*G6, 0)","v":0}]
[]
[4,"19-010-1.21.4","Általános teendők befejezés szakaszában, kezelő személyzet oktatása",1,"db",null,null,{"$f":"ROUND(D8*F8, 0)","v":0},{"$f":"ROUND(D8*G8, 0)","v":0}]
[]
[null,null,"Munkanem összesen:",{"$nulls":4},{"$f":"ROUND(SUM(H2:H8),0)","v":0},{"$f":"ROUND(SUM(I2:I8),0)","v":0}]

{"sheet":"Falazás és egyéb kőművesmunka","index":14,"n_rows":8,"n_cols":9,"rows_kept":8,"cut":false,"hidden":false,"merged":[]}
["Ssz.","Tételszám","Tétel szövege","Menny.","Egység","Anyag egységár","Díj egységre","Anyag összesen","Díj összesen"]
[1,"33-063-1.1.2","Faláttörés 30x30 cm méretig, téglafalban, 12,01-25 cm falvastagság között",5,"db",null,null,{"$f":"ROUND(D2*F2, 0)","v":0},{"$f":"ROUND(D2*G2, 0)","v":0}]
[]
[2,"33-063-3.2.2","Horonyvésés, téglafalban, 8,01-16,00 cm² keresztmetszet között",130,"m",null,null,{"$f":"ROUND(D4*F4, 0)","v":0},{"$f":"ROUND(D4*G4, 0)","v":0}]
[]
[3,"33-063-21.4.1","Fészekvésés, dobozok részére téglafalban, 55 - 78 mm átmérő között, 30 mm mélységig",51,"db",null,null,{"$f":"ROUND(D6*F6, 0)","v":0},{"$f":"ROUND(D6*G6, 0)","v":0}]
[]
[null,null,"Munkanem összesen:",{"$nulls":4},{"$f":"ROUND(SUM(H2:H6),0)","v":0},{"$f":"ROUND(SUM(I2:I6),0)","v":0}]

{"sheet":"Elektromosenergia-ellátás, vill","index":15,"n_rows":90,"n_cols":9,"rows_kept":90,"cut":false,"hidden":false,"merged":[]}
["Ssz.","Tételszám","Tétel szövege","Menny.","Egység","Anyag egységár","Díj egységre","Anyag összesen","Díj összesen"]
[1,"71-000-1.6","Vezetékek, kábelek és szerelvények bontása; kábelszerű vezeték leszerelése tartószerkezetről",20,"m",null,null,{"$f":"ROUND(D2*F2, 0)","v":0},{"$f":"ROUND(D2*G2, 0)","v":0}]
[]
[2,"71-000-1.8","Vezetékek, kábelek és szerelvények bontása; vezetékcsatorna, kábelcsatorna, mellvédcsatorna, padlószegélycsatorna leszerelése",20,"m",null,null,0,0]
[]
[3,"71-000-1.11","Vezetékek, kábelek és szerelvények bontása; kapcsolók, csatlakozó aljzatok, falifoglalatok, csengők, reduktorok, erős- vagy gyengeáramú nyomók, termosztátok, lépcsőházi automaták, jelzők leszerelése",10,"db",null,null,0,0]
[]
[4,"71-000-1.13","Vezetékek, kábelek és szerelvények bontása; mindennemű fényforrás és lámpatest leszerelése",5,"db",null,null,0,0]
[]
[5,"71-001-1.1.1.1.1-0110116","Merev simafalú vagy gégecső, műanyag védőcső elhelyezése, elágazó dobozokkal, előre elkészített falhoronyba, vékony vagy vékonyított falú kivitelben, könnyű mechanikai igénybevételre, Névleges méret: 11-16 mm Beltéri Mü III. vékonyfalú, hajlítható merev műanyag szürke védőcső 16 mm, Kód: MU-III 16",130,"m",null,null,0,0]
[]
[6,"71-001-1.2.1.2-0110054","Merev simafalú vagy gégecső, műanyag védőcső elhelyezése, elágazó dobozokkal, előre elkészített falhoronyba, vékony vagy vékonyított falú kivitelben, könnyű mechanikai igénybevételre, Névleges méret: 11-16 mm Beltéri Mü II. vékonyfalú, hajlítható merev műanyag szürke védőcső 25mm, Kód: MU-II 25",35,"m",null,null,0,0]
[]
[7,"71-001-1.2.1.2-0110055","Merev simafalú vagy gégecső, műanyag védőcső elhelyezése, elágazó dobozokkal, előre elkészített falhoronyba, vékony vagy vékonyított falú kivitelben, könnyű mechanikai igénybevételre, Névleges méret: 11-16 mm Beltéri Mü II. vékonyfalú, hajlítható merev műanyag szürke védőcső 32mm, Kód: MU-II 32",20,"m",null,null,0,0]
[]
[8,"71-001-1.2.1.2-0110056","Merev simafalú vagy gégecső, műanyag védőcső elhelyezése, elágazó dobozokkal, előre elkészített falhoronyba, vékony vagy vékonyított falú kivitelben, könnyű mechanikai igénybevételre, Névleges méret: 11-16 mm Beltéri Mü II. vékonyfalú, hajlítható merev műanyag szürke védőcső 40mm, Kód: MU-II 40",30,"m",null,null,{"$f":"ROUND(D16*F16, 0)","v":0},{"$f":"ROUND(D16*G16, 0)","v":0}]
[]
[9,"71-001-1.4.1-","Merev simafalú vagy gégecső, műanyag védőcső elhelyezése, elágazó dobozokkal,\ngégecső kemény műanyagból, elelőre elkészített tartószerkezetre, horonyba, üregbe szerelve, Névleges méret: 9-28,5 mm, önvisszaálló, behúzószállal, 20-as, 750N ellenállóság, halogénmentes, önkioltó polipropilén, lépésálló",100,"m",null,null,{"$f":"ROUND(D18*F18, 0)","v":0},{"$f":"ROUND(D18*G18, 0)","v":0}]
[]
[10,"71-001-1.4.1-","Merev simafalú vagy gégecső, műanyag védőcső elhelyezése, elágazó dobozokkal,\ngégecső kemény műanyagból, elelőre elkészített tartószerkezetre, horonyba, üregbe szerelve, Névleges méret: 9-28,5 mm, önvisszaálló, behúzószállal, 25-as, 750N ellenállóság, halogénmentes, önkioltó polipropilén, lépésálló",100,"m",null,null,0,0]
[]
[11,"71-001-3.1.3-0551050","Merev fém védőcsövek (acél, saválló, rozsdamentes, aluminium) elhelyezése előre elkészített tartóra, tokos idommal és toldó elemmel, külső átmérő 30-48 mm Fintech  IESR 32 E3 rozsdamentes védőcső, külső átm: 32 mm, hossz: 3000 mm, Cikkszám: 4046933002069",4.5,"m",null,null,0,0]
[]
[12,"71-001-11.2.1-0121106","Elágazó doboz illetve szerelvénydoboz elhelyezése, falon kívül, bármely méretben IP 66 védettségig Beltéri sima elágazó doboz, nehéz kivitel, Müdn 100 mm, fúrt, Kód: 767-771",90,"db",null,null,0,0]
[]
[13,"71-001-11.2.1-","Elágazó doboz illetve szerelvénydoboz elhelyezése, falon kívül, bármely méretben IP 66 védettségig Beltéri szerelvénydoboz, süllyesztett kivitel, 65 mm, ",51,"db",null,null,{"$f":"ROUND(D26*F26, 0)","v":0},{"$f":"ROUND(D26*G26, 0)","v":0}]
[]
[14,"71-001-24.2.1-0130461","Műanyag vezetékcsatorna, padlószegélycsatorna elhelyezése előre elkészített tartószerkezetre szerelve, idomdarabokkal, szélesség:  40 mm-ig KOPOS minicsatorna, 30x25mm, fedéllel, fehér, Cikkszám: LHD 30x25 HD",55,"m",null,null,0,0]
[]
[15,"71-001-48.1.1.1.2-0543066","Kábeltálca elhelyezése, tartószerkezet nélkül, bármely szélességben, idomok nélkül, száraz belsőtéri használatra, falra rögzítve, szélesség: 200 mm-ig, oldalmagasság: 60 mm OBO RKSM 610 kábeltálca perforált 0,75 mm, 60x100 mm, FS szalaghorganyzott, Cikkszám: 6047611",50,"m",null,null,0,0]
[]
[16,"71-001-49.1-0543467","Kábeltálca tartószerkezetek elhelyezése, falra rögzítéshez OBO TPSA falikonzol 145 mm, FS szalaghorganyzott, Cikkszám: 6364101",29,"db",null,null,0,0]
[]
[17,"71-002-1.1-0210003","Szigetelt vezeték elhelyezése védőcsőbe húzva vagy vezetékcsatornába fektetve, rézvezetővel, leágazó kötésekkel, szigetelés ellenállás méréssel, a szerelvényekhez csatlakozó vezetékvégek bekötése nélkül, keresztmetszet: 0,5-2,5 mm² H07V-U 450/750V 1x2,5 mm², tömör rézvezetővel (MCu)",200,"m",null,null,0,0]
[]
[18,"71-002-1.2-0210006","Szigetelt vezeték elhelyezése védőcsőbe húzva vagy vezetékcsatornába fektetve, rézvezetővel, leágazó kötésekkel, szigetelés ellenállás méréssel, a szerelvényekhez csatlakozó vezetékvégek bekötése nélkül, keresztmetszet: 4-6 mm² H07V-U 450/750V 1x6 mm², tömör rézvezetővel (MCu)",70,"m",null,null,0,0]
[]
[19,"71-002-21.1-0221521","Kábelszerű vezeték elhelyezése előre elkészített tartószerkezetre, 1-12 erű rézvezetővel, elágazó dobozokkal és kötésekkel, szigetelési elenállás méréssel, a szerelvényekhez csatlakozó vezetékvégek bekötése nélkül, keresztmetszet: 0,5-2,5 mm² Cabling Systems Hungary NYM 300/500V 3x1,5 mm², tömör rézvezetővel (MBCu)",400,"m",null,null,{"$f":"ROUND(D38*F38, 0)","v":0},{"$f":"ROUND(D38*G38, 0)","v":0}]
[]
[20,"71-002-21.1-","Kábelszerű vezeték elhelyezése előre elkészített tartószerkezetre, 1-12 erű rézvezetővel, elágazó dobozokkal és kötésekkel, szigetelési elenállás méréssel, a szerelvényekhez csatlakozó vezetékvégek bekötése nélkül, keresztmetszet: 0,5-2,5 mm² Gumikábel 300/500V 3x1,5 mm², tömör rézvezetővel (MBCu)",80,"m",null,null,0,0]
[]
[21,"71-002-21.1-0221522","Kábelszerű vezeték elhelyezése előre elkészített tartószerkezetre, 1-12 erű rézvezetővel, elágazó dobozokkal és kötésekkel, szigetelési elenállás méréssel, a szerelvényekhez csatlakozó vezetékvégek bekötése nélkül, keresztmetszet: 0,5-2,5 mm² NYM 300/500V 3x2,5 mm², tömör rézvezetővel (MBCu)",700,"m",null,null,{"$f":"ROUND(D42*F42, 0)","v":0},{"$f":"ROUND(D42*G42, 0)","v":0}]
[]
[22,"71-002-21.1-","Kábelszerű vezeték elhelyezése előre elkészített tartószerkezetre, 1-12 erű rézvezetővel, elágazó dobozokkal és kötésekkel, szigetelési elenállás méréssel, a szerelvényekhez csatlakozó vezetékvégek bekötése nélkül, keresztmetszet: 0,5-2,5 mm² NYM 300/500V 5x2,5 mm², tömör rézvezetővel (MBCu)",110,"m",null,null,{"$f":"ROUND(D44*F44, 0)","v":0},{"$f":"ROUND(D44*G44, 0)","v":0}]
[]
[23,"71-002-21.1-","Kábelszerű vezeték elhelyezése előre elkészített tartószerkezetre, 1-12 erű rézvezetővel, elágazó dobozokkal és kötésekkel, szigetelési elenállás méréssel, a szerelvényekhez csatlakozó vezetékvégek bekötése nélkül, keresztmetszet: 0,5-2,5 mm² NYM 300/500V 5x2,5 mm², tömör rézvezetővel (MBCu)",350,"m",null,null,0,0]
[]
[24,"71-002-21.3-0221566","Kábelszerű vezeték elhelyezése előre elkészített tartószerkezetre, 1-12 erű rézvezetővel, elágazó dobozokkal és kötésekkel, szigetelési elenállás méréssel, a szerelvényekhez csatlakozó vezetékvégek bekötése nélkül, keresztmetszet: 6 mm² NYM 300/500V 5x6 mm², tömör rézvezetővel (MBCu)",70,"m",null,null,0,0]
[]
[26,"71-002-21.5-0221575","Kábelszerű vezeték elhelyezése előre elkészített tartószerkezetre, 1-12 erű rézvezetővel, elágazó dobozokkal és kötésekkel, szigetelési elenállás méréssel, a szerelvényekhez csatlakozó vezetékvégek bekötése nélkül, keresztmetszet: 16 mm² NYM 300/500V 5x16 mm², tömör rézvezetővel (MBCu)",35,"m",null,null,0,0]
[]
[26,"71-003-9-0310343","Vezetékösszekötők elhelyezése WAGO 222-413 nyitható vezetékösszekötő gyorscsatlakozó rugós 3x0,08-2,5 mm2 32A",100,"db",null,null,0,0]
[]
[27,"71-003-9-0310345","Vezetékösszekötők elhelyezése WAGO 222-415 nyitható vezetékösszekötő gyorscsatlakozó rugós 5x0,08-2,5 mm2 32A",100,"db",null,null,0,0]
[]
[28,"71-004-4.2-0150315","Vezeték és kábelkötegelők, tartók elhelyezése, normál kivitelben LEGRAND Colring 2,4x140 színtelen vezetékkötegelő (Kat.szám:031821)",100,"db",null,null,0,0]
[]
[29,"71-005-1.1.1.2-0230104","Komplett világítási  és telekommunikációs szerelvények, Fali kapcsolók elhelyezése, süllyesztve, 6-16A kétpólusú kapcsolók LEGRAND Cariva kétpólusú kapcsoló kerettel, fehér (Kat.szám:773802)",5,"db",null,null,0,0]
[]
[30,"71-005-1.11.1.1.1-0231387","Komplett világítási  és telekommunikációs szerelvények, Csatlakozóaljzat elhelyezése, süllyesztve, 16A, földelt, egyes csatlakozóaljzat (2P+F) LEGRAND Plexo 55 2P+F aljzat csapófedéllel, csavaros, fehér (Kat.szám:069639)",31,"db",null,null,0,0]
[]
[31,"71-005-1.11.2.1.2-0545206","Komplett világítási  és telekommunikációs szerelvények, Csatlakozóaljzat elhelyezése, előre elkészített tartószerkezetre, falon kívül, 16A, földelt, kettős csatlakozóaljzat (2x2P+F) LEGRAND Forix IP44 fk 2x2P+F földelt csatlakozóaljzat, 16A, csapófedéllel, gyv, fehér (Kat.szám:782374)",2,"db",null,null,0,0]
[]
[32,"71-005-1.31.2-0545247","Komplett világítási  és telekommunikációs szerelvények, Telefon és PC csatlakozóaljzat, USB töltő aljzat, hangszóró-csatlakozó elhelyezése (egyes/kettős), PC, USB, hangszóró LEGRAND Forix IP20 falon kívüli 2x RJ45 Cat. 5e UTP informatikai csatlakozóaljzat fehér (Kat.szám:782428)",3,"db",null,null,0,0]
[]
[33,"71-005-1.42-0231409","Komplett világítási  és telekommunikációs szerelvények, Falonkívüli egyéb szerelvények elhelyezése LEGRAND Plexo 55 falonkívüli kulcsos kapcsoló 3 állású, komplett, szürke (Kat.szám:069706)",1,"db",null,null,0,0]
[]
[34,"71-006-13.1","Termosztátok, helyiség hőmérséklet, gáz érzékelők elhelyezése, falra szerelve Csak hely kialakítás",3,"db",null,null,0,0]
[]
[35,"71-007-4.2","CEE típusú hibrid csatlakozó felszerelése, energiaátvitel és vezérlőjel továbbítására, csatlakozó, IP 67 védettséggel, 5 pólusú (3p+n+f 32A)",5,"db",null,null,0,0]
[]
[36,"71-007-11.2.1.2-0313632","Egyéb kézi működtetésű terhelés/leválasztó kapcsoló elhelyezése, műanyag tokozással, 63 A-ig, 2 pólusú és 1+N pólusú GANZ KK KKM0-20-6001 2 pólusú, 0-1 állású be-ki kapcsoló",6,"db",null,null,0,0]
[]
[37,"71-007-11.2.1.4-0318169","Egyéb kézi működtetésű terhelés/leválasztó kapcsoló elhelyezése, műanyag tokozással, 63 A-ig, 4 pólusú és 3P+N pólusú LEGRAND Tokozott bütykös kapcsoló 4P 25A PR21 0-1 (Kat.szám:027723)",3,"db",null,null,0,0]
[]
[38,"71-009-2","Áramköri elosztók tartozékainak elhelyezése Meglévő elosztó bővítése 3xC63 kismegszakítóva",1,"klt",null,null,0,0]
[]
[39,"71-009-3.1.2","Áramköri elosztók elhelyezése falon kívüli kivitelben, kalapsínes szerelőlappal, földsínnel, max. 160A-ig, IP 30 védettséggel (kismegszakítók, védőkapcsolók, távkapcsolók stb. számára), helyszínen összeszerelve, elosztók 72 egység EL1 elosztó készre szerelve",1,"db",null,null,0,0]
[]
[40,"71-010-2.7-0630017","Felületre szerelt lámpatest elhelyezése előre elkészített tartószerkezetre, zárt, LED-es kivitelben Berton Világítástechnika, LED Panel 60x60, 32W/36W/40W, UGR<19, 105 lm/W CCT=4000K, CRI>80, Csz.: PNL-YA30120-45W-840-UGR",25,"db",null,null,0,0]
[]
[41,"71-010-12.13.3.1.6-0000001","(Akkumulátoros vészvilágítás)  Tartalék világítási lámpatestek elhelyezése, saját akkumulátoros címezhető, öntesztelő vagy központilag tesztelhető, kombinált üzemű, táplálású, falon kivüli vagy mennyezeti kivitelben, LED-es kivitelben STARLET QUAD LED SO 150 SA 3H AT terület optikás",3,"db",null,null,0,0]
[]
[42,"71-010-12.13.3.1.6-0548561","(Akkumulátoros vészvilágítás)  Tartalék világítási lámpatestek elhelyezése, saját akkumulátoros címezhető, öntesztelő vagy központilag tesztelhető, kombinált üzemű, táplálású, falon kivüli vagy mennyezeti kivitelben, LED-es kivitelben LEGRAND URA címezhető és központilag tesztelhető állandó/készenléti üzemű lámpatest, 350 Lm, 1 óra, LED (Kat.szám:662634)",2,"db",null,null,0,0]
[]
[43,"71-013-7.4","Érintésvédelmi hálózat tartozékainak szerelése, nagykiterjedésű fémtárgy földelő kötése EPH csomópontok és kötések kialakítása",10,"db",null,null,0,0]
[]
[44,"71-021-21.2.1-0321845","Kültéri felületfűtési rendszerek Koplett rendszer vízmentes elosztószekrény felületfűtési központ 10m csőfűtés érzékelőkkel",1,"db",null,null,0,0]
[]
[null,null,"Munkanem összesen:",{"$nulls":4},{"$f":"ROUND(SUM(H2:H88),0)","v":0},{"$f":"ROUND(SUM(I2:I88),0)","v":0}]

{"sheet":"Gyengeáram","index":16,"n_rows":35,"n_cols":9,"rows_kept":35,"cut":false,"hidden":false,"merged":[]}
["Ssz.","Tételszám","Tétel szövege","Menny.","Egység","Anyag egységár","Díj egységre","Anyag összesen","Díj összesen"]
[1,null,"Kategória 5e, F/UTP 4x2xAWG23, LSOH halogénmentés",60,"m",null,null,{"$f":"D2*F2","v":0},{"$f":"D2*G2","v":0}]
[]
[2,null,"Kategória 6A, 10Giga kábel STP 4x2xAWG23 (550 MHz), LSOH halogénmentés",50,"m",null,null,{"$f":"D4*F4","v":0},{"$f":"D4*G4","v":0}]
[]
[3,null,"R.III 32 unit RACK szekrény 600x600 fali",1,"klt",null,null,{"$f":"D6*F6","v":0},{"$f":"D6*G6","v":0}]
[]
[4,null,"CAT6A S/FTP Patch panel",1,"db",null,null,{"$f":"D8*F8","v":0},{"$f":"D8*G8","v":0}]
[]
[5,null,"Termosztátos ventilátor",1,"db",null,null,0,0]
[]
[6,null,"Rendező 1U",2,"db",null,null,0,0]
[]
[7,null,"9-es elosztó 230V",1,"db",null,null,0,0]
[]
[8,null,"Aruba 6000 24G 4SFP Vezérelt L3 Gigabit Ethernet (10/100/1000) 1U (R8N88A)",1,"db",null,null,0,0]
[]
[9,null," Switch Aruba 2530 24G Switch, P/N: J9776A",1,"db",null,null,0,0]
[]
[10,null,"APC - BACK-UPS ES 400VA - BE400-GR (240Watt / 400VA) Szünetmentes tápegység",1,"db",null,null,0,0]
[]
[11,null,"HONEYWELL HOME CO2 VÉSZJELZŐ falra szerelve",1,"db",null,null,0,0]
[]
[null,null,"Dokumentáció, megvalósulási terv készítés, kábel  mérés, ,oktatás, beüzemelés próba üzem"]
[12,null,"Kábelmérés",1,"klt",null,null,{"$f":"D25*F25","v":0},{"$f":"D25*G25","v":0}]
[]
[13,null,"Gyengeáramú kábelezésre gyártói garancia",1,"klt",null,null,0,0]
[]
[14,null,"Megvalósulási terv",1,"klt",null,null,0,0]
[]
[15,null,"Beüzemelés",1,"klt",null,null,0,0]
[]
[16,null,"Oktatás",1,"klt",null,null,0,0]
[]
[null,null,"Munkanem összesen:",{"$nulls":4},{"$f":"SUM(H2:H33)","v":0},{"$f":"SUM(I2:I33)","v":0}]

{"sheet":"Vízellátás, csatornázás","index":17,"n_rows":148,"n_cols":9,"rows_kept":148,"cut":false,"hidden":false,"merged":[]}
["Ssz.","Tételszám","Tétel szövege","Menny.","Egység","Anyag egységár","Díj egységre","Anyag összesen","Díj összesen"]
[1,"81-000-1.6","BONTÁSI MUNKÁK Csővezetékek bontása, vízvezeték elzárás és nyitás,·javítási munkák előtt és után, valamint a csőhálózat ürítése",1,"alk.",null,null,{"$f":"(D2*F2)","v":0},{"$f":"(D2*G2)","v":0}]
[]
[2,"81-000-1.1.1","horganyzott vagy fekete acélcsövek tartószerkezetről, vagy padlócsatornából lángvágással, deponálással, DN 50 méretig",20,"m",null,null,{"$f":"(D4*F4)","v":0},{"$f":"(D4*G4)","v":0}]
[]
[3,"81-000-1.5.1","Csővezetékek bontása, ragasztott vagy gumigyűrűs tömítésű PVC csővezeték esetén, DN 25 - 50 között",9,"m",null,null,{"$f":"(D6*F6)","v":0},{"$f":"(D6*G6)","v":0}]
[]
[4,"82-000-3.2","Vízellátás berendezési tárgyak leszerelése, szerelvényekkel, csaptelepekkel, szifonokkal együtt falikutak, mosdók",2,"db",null,null,{"$f":"(D8*F8)","v":0},{"$f":"(D8*G8)","v":0}]
[]
[5,"82-000-1.2.1","Szerelvények leszerelése, menetes szerelvények, DN 50 méretig",2,"db",null,null,{"$f":"(D10*F10)","v":0},{"$f":"(D10*G10)","v":0}]
[]
[6,"K-tétel","Visszavágott meglévő ivóvíz gerincvezeték víztömör lezárása",2,"db",null,null,{"$f":"(D12*F12)","v":0},{"$f":"(D12*G12)","v":0}]
[]
[7,"82-000-911-000-72-00001","A leszerelt, bontott, darabolt vasanyag kihordása a depóniába",1,"alk.",null,null,{"$f":"(D14*F14)","v":0},{"$f":"(D14*G14)","v":0}]
[]
[8,"82-000-921-001-72-72111","Bontott vasanyag elszállítása, fel és lerakással, 25 km-es körzetben",1,"alk",null,null,{"$f":"(D16*F16)","v":0},{"$f":"(D16*G16)","v":0}]
[]
[9,"K-tétel","Szaniter berendezések és tartozékaik depóniába történő kihordása",1,"alk",null,null,{"$f":"(D18*F18)","v":0},{"$f":"(D18*G18)","v":0}]
[]
[10,"K-tétel","Szaniter berendezések és tartozékaik elszállítása",1,"alk",null,null,{"$f":"(D20*F20)","v":0},{"$f":"(D20*G20)","v":0}]
[]
[11,"82-004-1.3-0353214","SZERELÉSI MUNKÁK Elektromos melegvíztermelő és tároló berendezés elhelyezése, tartozékokkal, szerelvényekkel, vízoldali bekötéssel,elektromos bekötés nélkül, 80,01- 200 liter között HAJDU Z - 120 Erp zártrendszerű elektromos forróvíztároló, fali függőleges kivitelű, 120 literes tűzzománcozott acél tartállyal, aktív anódos védelemmel, kombinált biztonsági szeleppel, 1,8 kW elektromos teljesítmény, Csz.: HAJ_2112011115",1,"db",null,null,{"$f":"(D22*F22)","v":0},{"$f":"(D22*G22)","v":0}]
[]
[12,"82-001-8.4.2-0334267","Kétoldalon préselt kötésű, vagy egyik oldalon préselt másik oldalon menetes szerelvény elhelyezése, DN 25 gömbcsap Viega Easytop gömbcsap, Viega préscsatlakozóval, kettős \"V\" préssel, SC-Contur-ral (bizt. kontúr), vörösöntvény szelepházzal, 28, Csz.: 746 407",3,"db",null,null,{"$f":"(D24*F24)","v":0},{"$f":"(D24*G24)","v":0}]
[]
[13,"82-211-912-123-01-13102","Szaniter kerámia  mosdó, hideg-melegvízre, műanyag faliékekkel, csavarokkal, 1 db MOFÉM leeresztőszelep nélküli csapteleppel 2 db falikoronggal, 2 db MOFÉM sarokszeleppel, nyomó összekötőcsővel, 1 db MOFÉM leeresztőszelepes bűzelzáróval, felszerelve, V&B ALFÖLDI-Saval típusú, bűzelzáró takaróelemmel, MOFÉM egykaros mosdócsapteleppel 60x49 cm  fehér 702040",2,"db",null,null,{"$f":"(D26*F26)","v":0},{"$f":"(D26*G26)","v":0}]
[]
[14,"82-009-2.2.2.5-0311535","Mosogató elhelyezése és bekötése, hideg-meleg vízre, nagykonyhai (ipari) mosogató, csaptelep nélkül, bűzelzáróval, lábazattal, hárommedencés hárommedencés nagykonyhai és ipari mosogató 2400x800x850 mm, lábazattal, leeresztő szelepekkel, szifonokkal",1,"db",null,null,{"$f":"(D28*F28)","v":0},{"$f":"(D28*G28)","v":0}]
[]
[15,"82-051-19.5.3-0117451","Élelmiszer üzemi és nagykonyhai csaptelepek és szerelvényeinek felszerelése, mosogató csaptelep, komplett-, álló kivitelben, öblítőzuhannyal B&K öblítőzuhany álló keverőcsappal 280-as kifolyó, krómozott rugó, fekete fejjel, Cikkszám: BK00941001",2,"db",null,null,{"$f":"(D30*F30)","v":0},{"$f":"(D30*G30)","v":0}]
[]
[16,null,"Zuhanytálca vagy zuhanykabin elhelyezése és bekötése, zuhanytálca, csaptelep és szifon nélkül, acéllemez kivitelben\nB&K zuhanytálca, rozsdamentes acélból, 1000x1000x30 mm, Cikkszám: BKH4370241\n",1,"db",null,null,{"$f":"(D32*F32)","v":0},{"$f":"(D32*G32)","v":0}]
[]
[17,"82-009-19.1.1-0318775","Csaptelepek és szerelvényeinek felszerelése, kádcsaptelepek, fali kádcsaptelep MOFÉM Junior Evo egykaros kádtöltőcsaptelep, ECO kerámia vezérlőegység, forrázás elleni védelemmel, kr. tartozékokkal, kód: 151-0063-00",1,"db",null,null,{"$f":"(D34*F34)","v":0},{"$f":"(D34*G34)","v":0}]
[]
[18,"82-009-18.2-0318815","Berendezési tárgyak szerelvényeinek felszerelése, fali kifolyószelep szerelés kifolyószelep, tömlővéggel, 1/2\"",4,"db",null,null,{"$f":"(D36*F36)","v":0},{"$f":"(D36*G36)","v":0}]
[]
[19,"81-514-612-012-51-51612","Falikorong sárgarézből, rozsdamentes acél présgyűrűvel, felszerelve 16 PEX",3,"db",null,null,{"$f":"(D38*F38)","v":0},{"$f":"(D38*G38)","v":0}]
[]
[20,"81-514-612-012-51-51612","20 PEX",2,"db",null,null,{"$f":"(D40*F40)","v":0},{"$f":"(D40*G40)","v":0}]
[]
[21,"81-514-612-012-51-51612","25 PEX",4,"db",null,null,{"$f":"(D42*F42)","v":0},{"$f":"(D42*G42)","v":0}]
[]
[22,"82-001-7.2.1-0110911","Kétoldalon menetes vagy roppantógyűrűs szerelvény elhelyezése, külső vagy belső menettel, illetve hollandival csatlakoztatva DN 15 szelepek, csappantyúk (szabályzó, fojtó-elzáró, beavatkozó) MOFÉM csempeszelep kék, 1/2\", Kód: 164-0014-00",5,"db",null,null,{"$f":"(D44*F44)","v":0},{"$f":"(D44*G44)","v":0}]
[]
[23,"82-001-7.2.1-0110912","MOFÉM csempeszelep piros, 1/2\", Kód: 164-0015-00",1,"db",null,null,{"$f":"(D46*F46)","v":0},{"$f":"(D46*G46)","v":0}]
[]
[24,"82-001-7.2.1-0110161","MOFÉM sárgaréz sarokszelep 1/2\"-1/2\" sárgaréz, krómozott, 10 bar, Kód: 163-0002-00",4,"db",null,null,{"$f":"(D48*F48)","v":0},{"$f":"(D48*G48)","v":0}]
[]
[25,"82-252-322-008-49-45132","Vízvezetéki gumicső, csaptelepek bekötéséhez, rozsdamentes acélháló védőbevonattal, sárgaréz krómozott csatlakozó idomokkal, felszerelve DN15",4,"db",null,null,{"$f":"(D50*F50)","v":0},{"$f":"(D50*G50)","v":0}]
[]
[26,"82-009-21.2-0135118","Padló alatti, feletti illetve falba süllyeszthető bűzelzáró, padló feletti vagy falba süllyeszthető elhelyezése HL136N, Kondenzvíz gyűjtő szifon DN40 kimenettel, DN32 , ill. d 12 - 18 mm gumi tömítő karmantyús, függőleges, vagy vízszintes bemenettel, 60 mm vízbűzzárral és kiegészítő mechanikus bűzzárral, tisztító kazettával. Berendezések kondenzvizének elvezetésére alkalmas.",3,"db",null,null,{"$f":"(D52*F52)","v":0},{"$f":"(D52*G52)","v":0}]
[]
[27,"82-009-21.2-0135119","HL138, Klímaszifon falba süllyesztve kondenzvíz és cseppgyűjtéshez DN32 függőleges kimenettel. A kiszáradás esetén is bűzzáró (kettős működésű) bűzzár-kazetta kihúzható, és tisztítható, vagy cserélhető. Bemenete {átmérő} 20 - 32mm-es csővel vagy tömlővel. A beépítőház a végleges beépítési mélységre állítható. Min beépítési mélység 60mm",1,"db",null,null,{"$f":"(D54*F54)","v":0},{"$f":"(D54*G54)","v":0}]
[]
[28,"82-009-21.2-0135120","HL21, Csepegtető tölcsér DN32 víz- és golyós bűzzárral",1,"db",null,null,{"$f":"(D56*F56)","v":0},{"$f":"(D56*G56)","v":0}]
[]
[29,"82-009-21.3.1.4-0232102","összeszerelhető bűzelzárók elhelyezése, alaptestek, DN 100  fix magasságú padlóösszefolyó rozsdamentes acélból, bűzzárral, függőleges DN 110 kivezetéssel, méret: 200x200mm, Rend.sz: ",6,"db",null,null,{"$f":"(D58*F58)","v":0},{"$f":"(D58*G58)","v":0}]
[]
[30,"82-009-21.3.4.1-0232231","rácsok, rácstartó keretek, magasítók, víztelenítő gyűrű DN 50 - DN 200 rozsdamentes acél 200x200mm méretű rácsfeltét kétrészes összefolyóhoz, 25 mm rácsmagassághoz, ",6,"db",null,null,{"$f":"(D60*F60)","v":0},{"$f":"(D60*G60)","v":0}]
[]
[31,"82-009-21.3.3.1-0232396","szennyfogó szűrők, homokfogók, DN 50 - DN 200  szennyfogó kosár",6,"db",null,null,{"$f":"(D62*F62)","v":0},{"$f":"(D62*G62)","v":0}]
[]
[32,"82-219-202-001-51-10121","Kéztörlő adagoló Z és C hajtogatású kéztörlőkhöz, ABS és MABS műanyagból, kulccsal és anélkül is nyitható, padlótól 120 cm magasságra falra felszerelve, TORK Elevation típusú, 500 lap befogadására alkalmas 43,9x33,3x13,6 cm-es, fehér  553000",2,"db",null,null,{"$f":"(D64*F64)","v":0},{"$f":"(D64*G64)","v":0}]
[]
[33,"82-219-201-001-51-10211","Folyékonyszappan adagoló ABS és MABS műanyagból, 1 literes TORK folyékonyszappan adagolásához, kulccsal és anélkül is nyitható, mosdó vagy pult fölé 20 cm magasságra falra felszerelve, TORK Elevation típusú, 29,1x11,2x11,4 cm-es, fehér  560000",3,"db",null,null,{"$f":"(D66*F66)","v":0},{"$f":"(D66*G66)","v":0}]
[]
[34,"82-219-202-001-51-10611","Hulladékgyűjtő ABS műanyagból, 50 literes űrtartalommal, opcionálisan tetővel is ellátható (205630, 205638), falra felszerelve (padlótól 10 cm-re), TORK Elevation típusú, 62,9x38,9x28,9 cm-es, fehér  563000",2,"db",null,null,{"$f":"(D68*F68)","v":0},{"$f":"(D68*G68)","v":0}]
[]
[35,"81-515-002-116-44-42014","Univerzális műanyag csővezetékek, célszerszámmal szerelhető, toldóhüvelyes oldhatatlan kötésekkel, szakaszos nyomáspróbával, csőidomokkal, REHAU RAUTITAN flex típusú, tekercsben átm. 16 x 2,2 mm 130370-100",20,"m",null,null,{"$f":"(D70*F70)","v":0},{"$f":"(D70*G70)","v":0}]
[]
[36,"81-515-003-120-44-42014","átm. 20 x 2,8 mm 130380-100",36,"m",null,null,{"$f":"(D72*F72)","v":0},{"$f":"(D72*G72)","v":0}]
[]
[37,"81-515-004-125-44-42014","átm. 25 x 3,5 mm 130390-025",10,"m",null,null,{"$f":"(D74*F74)","v":0},{"$f":"(D74*G74)","v":0}]
[]
[38,"81-515-005-132-44-42014","átm. 32 x 4,4 mm 130400-025",40,"m",null,null,{"$f":"(D76*F76)","v":0},{"$f":"(D76*G76)","v":0}]
[]
[39,"81-231-105-040-44-92001","Tokos, hangszigetelt  lefolyóvezeték műanyagból, ajakos tömítéssel, szakaszos nyomáspróbával, szabadon szerelve, csőidomokkal és csőtartó bilinccsekkel együtt. Anyaga: Pipelife KA-PVC EM típusú, átm. 40 mm ",16,"m",null,null,{"$f":"(D78*F78)","v":0},{"$f":"(D78*G78)","v":0}]
[]
[40,"81-231-106-050-44-92001","átm. 50 mm",20,"m",null,null,{"$f":"(D80*F80)","v":0},{"$f":"(D80*G80)","v":0}]
[]
[41,"81-231-107-075-44-92001","átm. 63 mm ",5,"m",null,null,{"$f":"(D82*F82)","v":0},{"$f":"(D82*G82)","v":0}]
[]
[42,"81-231-110-110-44-92001","átm.110 mm",27,"m",null,null,{"$f":"(D84*F84)","v":0},{"$f":"(D84*G84)","v":0}]
[]
[43,"81-241-110-110-01-92011","Tokos lefolyóvezeték műanyagból, gumigyűrűs kötésekkel, szakaszos tömörségi próbával, szabadon szerelve, csőidomokkal és csőtartókkal együtt. Anyaga: PVC-KG PIPELIFE típusú, átm.110 x 3,2 mm KGEM110/1M-S",10,"m",null,null,{"$f":"(D86*F86)","v":0},{"$f":"(D86*G86)","v":0}]
[]
[44,"81-131-102-020-01-01011","Műanyag nyomócsővezeték, ragasztott kötésekkel, szakaszos nyomáspróbával. Anyaga: PVC, MSZ 8000-5:1982 PIPELIFE típusú, szabadon szerelve, tartószerkezettel, műanyag idomokkal átm. 20 x 1,5 mm NY020/6M16B",24,"m",null,null,{"$f":"(D88*F88)","v":0},{"$f":"(D88*G88)","v":0}]
[]
[45,"81-131-104-032-01-01011","átm. 32 x 1,6 mm NY032/6M10B",24,"m",null,null,{"$f":"(D90*F90)","v":0},{"$f":"(D90*G90)","v":0}]
[]
[46,"48-830-021-018-71-87020","Épületgépészeti és ipari csővezeték szigetelése szintetikus gumi, szintetikus kaucsuk, polietilén vagy poliuretán anyagú csőhéjjal, teljes felületen ragasztva, KAIFLEX EF típusú, csőhéj, anyaga: szintetikus kaucsuk, szaniter, légtechnikai, klima és hűtési csővezetékre, 9 mm vastag 18 mm átm. csővezetékre",20,"m",null,null,{"$f":"(D92*F92)","v":0},{"$f":"(D92*G92)","v":0}]
[]
[47,"48-830-021-022-71-87020","22 mm átm. csővezetékre",36,"m",null,null,{"$f":"(D94*F94)","v":0},{"$f":"(D94*G94)","v":0}]
[]
[48,"48-830-021-028-71-87020","28 mm átm. csővezetékre",10,"m",null,null,{"$f":"(D96*F96)","v":0},{"$f":"(D96*G96)","v":0}]
[]
[49,"48-830-021-035-71-87020","35 mm átm. csővezetékre",10,"m",null,null,{"$f":"(D98*F98)","v":0},{"$f":"(D98*G98)","v":0}]
[]
[50,"48-830-022-042-71-87020","42 mm átm. csővezetékre",40,"m",null,null,{"$f":"(D100*F100)","v":0},{"$f":"(D100*G100)","v":0}]
[]
[51,"48-860-001-002-15-86120","Hőszigetelt körkeresztmetszetű egyenes vezetékek fémlemez burkolása, 100 mm külső átmérőig, AL 99.5 min.alumínium lemezzel 1.00 mm vtg.",6,"m",null,null,{"$f":"(D102*F102)","v":0},{"$f":"(D102*G102)","v":0}]
[]
[52,"71-021-2.1.2-0321744","Kültéri fagy-, hó- és jégmentesítés, elektromos felületfűtéssel, (szabályzás és védőcsövezés kiépítését külön tételben kell kiírni), 16 cm szélességig csatornába, függőleges felületen Nordinova Comfort Heat önszabályzó fűtőkábel 23FSLe2-CT, teljesítmény 0°C-on 23W/m, a fűtőkábel a környezeti hőmérséklet szerint változtatja az ellenállását, a felületi hőmérséklete emiatt állandó, a hajlítási rádiusz minimum 30mm! kábelkeresztmetszet méretei: 10,5x5,9mm, robbanásveszélyes helyre telepíthető, 230V; Csz: 85162100",2,"m",null,null,{"$f":"(D104*F104)","v":0},{"$f":"(D104*G104)","v":0}]
[]
[53,"82-016-6.1.1-0461113","Felirati táblák elhelyezése 1 vagy 2 soros, maximum 20x15 cm",10,"db",null,null,{"$f":"(D106*F106)","v":0},{"$f":"(D106*G106)","v":0}]
[]
[54,"39-003-21.9.1.1-0143107","Kiegészítő mellékmunkák, szerelő (revíziós) nyílás beépítése, fém kivitelben, gipszkarton álmennyezetben (horganyzott vagy porszórt felülettel) KNAUF revíziós nyílás tűzálló gipszkarton lappal 600x600 mm",1,"db",null,null,{"$f":"(D108*F108)","v":0},{"$f":"(D108*G108)","v":0}]
[]
[55,"31-000-13.2","Beltéri burkolat és beton aljzat bontása, kézi és gépi erővel, törmelék depóniába történő kihordásával, majd elszállíttatásával",50,"m",null,null,{"$f":"(D110*F110)","v":0},{"$f":"(D110*G110)","v":0}]
[]
[56,"61-001-2.2","Belső udvar aszfalt burkolatának bontása, kézi és gépi erővel, törmelék depóniába történő kihordásával, majd elszállíttatásával, majd a burkolat helyreállítása teherhordó réteggel és felső hideg aszfalttal",8,"m",null,null,{"$f":"(D112*F112)","v":0},{"$f":"(D112*G112)","v":0}]
[]
[57,"21-003-5.1.1.2","Munkaárok földkiemelése, kézi erővel, bármely konzisztenciájú talajban, dúcolás nélkül, 2,0 m2 szelvényig,",28,"m3",null,null,{"$f":"(D114*F114)","v":0},{"$f":"(D114*G114)","v":0}]
[]
[58,"53-101-5.1.1.1-0120221","Ágyazatok készítése csővezeték fektetés alá tömörítéssel, osztályozott homokból vagy homokos kavicsból Nyers homok",12,"m3",null,null,{"$f":"(D116*F116)","v":0},{"$f":"(D116*G116)","v":0}]
[]
[59,"21-003-11.1.1","Földvisszatöltés munkagödörbe vagy munkaárokba, tömörítés nélkül, réteges elterítéssel, I-IV. osztályú talajban, kézi erővel, az anyag súlypontja karoláson belül, a vezeték (műtárgy) felett és mellett 50 cm vastagságig",16,"m3",null,null,{"$f":"(D118*F118)","v":0},{"$f":"(D118*G118)","v":0}]
[]
[60,"21-003-11.1.2","kézi erővel, az anyag súlypontja karoláson belül, a vezetéket (műtárgyat) környező 50 cm-en túli szelvényben",6,"m3",null,null,{"$f":"(D120*F120)","v":0},{"$f":"(D120*G120)","v":0}]
[]
[61,"21-008-1.2.2","Döngölés kézi erővel vizes, tapadós",20,"m3",null,null,{"$f":"(D122*F122)","v":0},{"$f":"(D122*G122)","v":0}]
[]
[62,"21-011-1.1.1","Fejtett föld felrakása szállítóeszközre, kézi erővel, majd elszállítás, lerakóhelyi díjjal,",8,"m3",null,null,{"$f":"(D124*F124)","v":0},{"$f":"(D124*G124)","v":0}]
[]
[63,"K-tétel","Tervezett ivóvíz vezeték rákötése a meglévő megmaradó hálózatra DN25 (hideg)",1,"db",null,null,{"$f":"(D126*F126)","v":0},{"$f":"(D126*G126)","v":0}]
[]
[64,"K-tétel","Gépészeti szereléshez kapcsolódó kőműves munkák, horonyvésés, faláttörés,födémáttörés, a kőműves visszajavítások, vagy pótlások nélkül előirányzat",1,"klt",null,null,{"$f":"(D128*F128)","v":0},{"$f":"(D128*G128)","v":0}]
[]
[65,"82-999-111-001","Víz,- csatornaszerelési munkák próbái, vízvezetéki lefolyórendszer tömörségi próbája",1,"klt",null,null,{"$f":"(D130*F130)","v":0},{"$f":"(D130*G130)","v":0}]
[]
[66,"82-999-111-002","vízvezetéki nyomórendszer nyomáspróbája",1,"klt",null,null,{"$f":"(D132*F132)","v":0},{"$f":"(D132*G132)","v":0}]
[]
[67,"82-999-111-004","vezetékrendszer fertőtlenítése",1,"db",null,null,{"$f":"(D134*F134)","v":0},{"$f":"(D134*G134)","v":0}]
[]
[68,"K-tétel","A létesítmény használatbavétele előtt negatív vízminta jegyzőkönyv készítése, akkreditált módon vett, akkreditált laboratórium által (kémiai és bakteriológiai paraméterekre) vizsgált vízvizsgálat elvégzése, amely eredményének meg kell felelnie az ivóvíz minőségi követelményeiről és az ellenőrzés rendjéről szóló 201/2001. (X. 25.) Korm. rendelet előírásainak.",1,"db",null,null,{"$f":"(D136*F136)","v":0},{"$f":"(D136*G136)","v":0}]
[]
[69,"82-999-121-001","Víz,- csatornaszerelési munkák átadás-átvételi eljárásával kapcsolatos költségek átadási dokumentáció készítés",1,"db",null,null,{"$f":"(D138*F138)","v":0},{"$f":"(D138*G138)","v":0}]
[]
[70,"82-999-121-002","átadási eljárás lefolytatása",1,"db",null,null,{"$f":"(D140*F140)","v":0},{"$f":"(D140*G140)","v":0}]
[]
[71,"82-999-121-003","kezelési utasítás készítés",1,"db",null,null,{"$f":"(D142*F142)","v":0},{"$f":"(D142*G142)","v":0}]
[]
[72,"82-999-121-004","kezelésre vonatkozó kioktatás",1,"db",null,null,{"$f":"(D144*F144)","v":0},{"$f":"(D144*G144)","v":0}]
[]
[73,"19-010-1.21.2","Általános teendők befejezés szakaszában, megvalósulási tervdokumentáció elkészítése",1,"db",null,null,{"$f":"(D146*F146)","v":0},{"$f":"(D146*G146)","v":0}]
[]
[null,null,"Összesen:",{"$nulls":4},{"$f":"SUM(H2:H146)","v":0},{"$f":"SUM(I2:I146)","v":0}]

{"sheet":"Fűtés, hűtés","index":18,"n_rows":68,"n_cols":9,"rows_kept":68,"cut":false,"hidden":false,"merged":[]}
["Ssz.","Tételszám","Tétel szövege","Menny.","Egység","Anyag egységár","Díj egységre","Anyag összesen","Díj összesen"]
[1,"K-tétel","BONTÁSI MUNKÁK Fűtészerelési munkák megkezdése előtt a meglévő vezeték hálózat lezárása, ürítése",1,"db",null,null,{"$f":"(D2*F2)","v":0},{"$f":"(D2*G2)","v":0}]
[]
[2,"82-000-1.3.5","Szerelvények leszerelése, kazánházi szerelvények légedények, keverőedények",1,"db",null,null,{"$f":"(D4*F4)","v":0},{"$f":"(D4*G4)","v":0}]
[]
[3,"82-000-1.2.1","Szerelvények leszerelése, menetes szerelvények, DN 50 méretig",5,"db",null,null,{"$f":"(D6*F6)","v":0},{"$f":"(D6*G6)","v":0}]
[]
[4,"81-000-1.1.1","Csővezetékek bontása, horganyzott vagy fekete acélcsövek tartószerkezetről, vagy padlócsatornából lángvágással, deponálással, DN 50 méretig",11,"m",null,null,{"$f":"(D8*F8)","v":0},{"$f":"(D8*G8)","v":0}]
[]
[5,"82-000-911-000-72-00001","A leszerelt, bontott, darabolt vasanyag kihordása a depóniába",1,"alk.",null,null,{"$f":"(D10*F10)","v":0},{"$f":"(D10*G10)","v":0}]
[]
[6,"84-001-3.1.2","Oldalfali mono és multi split klímák elhelyezése, csővezetés nélkül, mono split klímák, hőszivattyús kivitelben, hűtő-/fűtőteljesítmény: 10 kW / 15 kW-ig Gree GWH09AGA-K6DNA1A oldalfali splitklíma",1,"db",null,null,{"$f":"(D12*F12)","v":0},{"$f":"(D12*G12)","v":0}]
[]
[7,"84-001-3.9.1","kiegészítő tartózékok, fali tartókonzol",1,"db",null,null,{"$f":"(D14*F14)","v":0},{"$f":"(D14*G14)","v":0}]
[]
[8,"84-001-10.1","Klíma vezérlő, osztódoboz, működtető, felügyeleti rendszer elhelyezése elektromos és gépészeti bekötés nélkül, Gree vezetékes fali vezérlő",1,"db",null,null,{"$f":"(D16*F16)","v":0},{"$f":"(D16*G16)","v":0}]
[]
[9,"84-001-3.1.2","Oldalfali mono és multi split klímák elhelyezése, csővezetés nélkül, multi split klímák, egy kültéri és két beltéri egységgel, hőszivattyús kivitelben, hűtő-/fűtőteljesítmény: 25 kW / 30 kW-ig Gree GWHD(28)NK6LO - GWH(18)QD-K6DND6B oldalfali splitklíma",1,"db",null,null,{"$f":"(D18*F18)","v":0},{"$f":"(D18*G18)","v":0}]
[]
[10,"84-001-3.9.1","kiegészítő tartózékok, fali tartókonzol",1,"db",null,null,{"$f":"(D20*F20)","v":0},{"$f":"(D20*G20)","v":0}]
[]
[11,"84-001-10.1","Klíma vezérlő, osztódoboz, működtető, felügyeleti rendszer elhelyezése elektromos és gépészeti bekötés nélkül, Gree vezetékes fali vezérlő",2,"db",null,null,{"$f":"(D22*F22)","v":0},{"$f":"(D22*G22)","v":0}]
[]
[12,"83-669-101-007-21-11021","Vörösrézcső vezeték hűtés és klímatechnikai célra, forrasztásos csőkötésekkel, szakaszos nyomáspróbával, szabadon, horonyba vagy padlócsatornába szerelve, (a szerelőkőműves munkák külön tételben történő elszámolásával), csőidomokkal és tartók árával, FRIGOTEC típusú, tisztított kivitelben, lezárt csővégekkel, EN 12735-1 szerint, CU-DHP anyagminőségű, lágy kivitelben, tekercsben szállítva átm.  6,0 x 1,0 mm",40,"m",null,null,{"$f":"(D24*F24)","v":0},{"$f":"(D24*G24)","v":0}]
[]
[13,"83-669-101-010-21-11021","átm. 10,0 x 1,0 mm",40,"m",null,null,{"$f":"(D26*F26)","v":0},{"$f":"(D26*G26)","v":0}]
[]
[14,"48-830-021-006-71-87010","Épületgépészeti és ipari csővezeték szigetelése szintetikus gumi, szintetikus kaucsuk, polietilén vagy poliuretán anyagú csőhéjjal, teljes felületen ragasztva, KAIFLEX EF típusú, csőhéj, anyaga: szintetikus kaucsuk, szaniter, légtechnikai, klima és hűtési csővezetékre, 19 mm vastag 6 mm átm. csővezetékre",40,"m",null,null,{"$f":"(D28*F28)","v":0},{"$f":"(D28*G28)","v":0}]
[]
[15,"48-830-021-012-71-87040","12 mm átm. csővezetékre",40,"m",null,null,{"$f":"(D30*F30)","v":0},{"$f":"(D30*G30)","v":0}]
[]
[16,"48-860-001-002-15-86120","Hőszigetelt körkeresztmetszetű egyenes vezetékek fémlemez burkolása, 100 mm külső átmérőig, AL 99.5 min.alumínium lemezzel 1.00 mm vtg.",4,"m",null,null,{"$f":"(D32*F32)","v":0},{"$f":"(D32*G32)","v":0}]
[]
[17,"K-tétel","Hűtőközeg, utántöltés R410A, előirányzat",1,"klt",null,null,{"$f":"(D34*F34)","v":0},{"$f":"(D34*G34)","v":0}]
[]
[18,"82-016-6.1.1-0461113","Felirati táblák elhelyezése 1 vagy 2 soros, maximum 20x15 cm",3,"db",null,null,{"$f":"(D36*F36)","v":0},{"$f":"(D36*G36)","v":0}]
[]
[19,"39-003-21.9.1.1-0143107","Kiegészítő mellékmunkák, szerelő (revíziós) nyílás beépítése, fém kivitelben, gipszkarton álmennyezetben (horganyzott vagy porszórt felülettel) KNAUF revíziós nyílás tűzálló gipszkarton lappal 600x600 mm",2,"db",null,null,{"$f":"(D38*F38)","v":0},{"$f":"(D38*G38)","v":0}]
[]
[20,"K-tétel","TOSHIBA, mono-split egység beüzemelése",1,"alk.",null,null,{"$f":"(D40*F40)","v":0},{"$f":"(D40*G40)","v":0}]
[]
[21,"K-tétel","Klíma berendezések szivárgásvizsgálata, kompletten",1,"klt",null,null,{"$f":"(D42*F42)","v":0},{"$f":"(D42*G42)","v":0}]
[]
[22,"82-999-241-001","Klímatechnikai szerelési munkák átadás-átvételi eljárásával kapcsolatos költségek,  lejelentése a illetékes hatóság felé",1,"db",null,null,{"$f":"(D44*F44)","v":0},{"$f":"(D44*G44)","v":0}]
[]
[23,"82-999-241-001","átadási dokumentáció készítés",1,"db",null,null,{"$f":"(D46*F46)","v":0},{"$f":"(D46*G46)","v":0}]
[]
[24,"82-999-241-002","átadási eljárás lefolytatása",1,"db",null,null,{"$f":"(D48*F48)","v":0},{"$f":"(D48*G48)","v":0}]
[]
[25,"82-999-241-003","kezelési utasítás készítése",1,"db",null,null,{"$f":"(D50*F50)","v":0},{"$f":"(D50*G50)","v":0}]
[]
[26,"82-999-241-004","kezelésre vonatkozó kioktatás és jegyzőkönyv készítés",1,"db",null,null,{"$f":"(D52*F52)","v":0},{"$f":"(D52*G52)","v":0}]
[]
[27,"19-010-1.21.2","Általános teendők befejezés szakaszában, megvalósulási tervdokumentáció elkészítése",1,"db",null,null,{"$f":"(D54*F54)","v":0},{"$f":"(D54*G54)","v":0}]
[]
[28,"82-012-3.3.1.4-0423567","Acéllemez kompakt lapradiátor elhelyezése, széthordással, tartókkal, bekötéssel, 3 soros, 1600 mm-ig, 600 mm\nkompakt lapradiátor 33K típus, 3-soros, 3 konvektorlemez borítással, 600x1000 mm, fűtőteljesítmény: 2453 W",1,"db",null,null,{"$f":"(D56*F56)","v":0},{"$f":"(D56*G56)","v":0}]
[]
[29,"82-012-3.3.1.4-0423572","Acéllemez kompakt lapradiátor elhelyezése, széthordással, tartókkal, bekötéssel, 3 soros, 1600 mm-ig, 600 mm\nkompakt lapradiátor 33K típus, 3-soros, 3 konvektorlemez borítással, 600x1600 mm, fűtőteljesítmény: 3925 W",1,"db",null,null,{"$f":"(D58*F58)","v":0},{"$f":"(D58*G58)","v":0}]
[]
[30,"82-012-10.2-0460330","Fűtőtest tartószerkezetek elhelyezése, radiátor támasz (talpas vagy fali) fali felszerelési egységcsomag, univerzális 3 db-os",2,"db",null,null,{"$f":"(D60*F60)","v":0},{"$f":"(D60*G60)","v":0}]
[]
[31,"82-001-16.2.5-0121394","Fűtőtest szerelvény elhelyezése külső vagy belső menettel, illetve hollandival csatlakoztatva DN 15 termosztatikus szelep\nHERZ TS-90-E termosztatikus fűtőtest szabályozó szelep egyenes 1/2\" kvs 5,1, Csz: 1772311",2,"db",null,null,{"$f":"(D62*F62)","v":0},{"$f":"(D62*G62)","v":0}]
[]
[32,"82-001-17.1.2-0116451","Termosztatikus szelepfej felszerelése radiátorszelepre, hollandival csatlakoztatva HERZ termosztatikus szelepfej beépített érzékelővel, \"0\" állásban mechanikus elzárással, HERZ-TS szelepekhez, fehér színű, Csz: 1.9230.06",2,"db",null,null,{"$f":"(D64*F64)","v":0},{"$f":"(D64*G64)","v":0}]
[]
[33,"82-012-3.3.99","Fűtőtestek elhelyezéséhez meglévő vezetékek átalakítása",2,"ktg",null,null,{"$f":"(D66*F66)","v":0},{"$f":"(D66*G66)","v":0}]
[]
[null,null,"Összesen:",{"$nulls":4},{"$f":"SUM(H2:H66)","v":0},{"$f":"SUM(I2:I66)","v":0}]

{"sheet":"Légtechnika","index":19,"n_rows":108,"n_cols":9,"rows_kept":108,"cut":false,"hidden":false,"merged":[]}
["Ssz.","Tételszám","Tétel szövege","Menny.","Egység","Anyag egységár","Díj egységre","Anyag összesen","Díj összesen"]
[1,"83-000-1","BONTÁSI MUNKÁK Csövek, idomok, szerelvények bontása Bontási munkák",1,"klt",null,null,{"$f":"(D2*F2)","v":0},{"$f":"(D2*G2)","v":0}]
[]
[2,"82-000-911-000-72-00001","A leszerelt, bontott, darabolt vasanyag kihordása a depóniába",1,"alk.",null,null,{"$f":"(D4*F4)","v":0},{"$f":"(D4*G4)","v":0}]
[]
[3,"83-001-2.14.2-0532229","Kör keresztmetszetű légcsatorna és idomaik szerelése, tartószerkezet nélkül, hangcsillapított hajlítható lemezcső, alumínium lemezből, NÁ 160-250 mm között AIRVENT SONODEC 25 kettősfalú hangszigetelt flexibilis cső, 25 mm-es szigeteléssel, NÁ 200 mm",3,"m",null,null,{"$f":"(D6*F6)","v":0},{"$f":"(D6*G6)","v":0}]
[]
[4,"83-001-2.14.2-0532231","Kör keresztmetszetű légcsatorna és idomaik szerelése, tartószerkezet nélkül, hangcsillapított hajlítható lemezcső, alumínium lemezből, NÁ 160-250 mm között AIRVENT SONODEC 25 kettősfalú hangszigetelt flexibilis cső, 25 mm-es szigeteléssel, NÁ 250 mm",6,"m",null,null,{"$f":"(D8*F8)","v":0},{"$f":"(D8*G8)","v":0}]
[]
[5,"83-001-2.1.2-0830611","Kör keresztmetszetű légcsatorna és idomaik szerelése, tartószerkezet nélkül, spirálkorcolt lemezcső, horganyzott acéllemezből, spirálkorcolt lemezcső, horganyzott acéllemezből, lemez vtg. 0,5 mm, DN 100, SR-100",30,"m",null,null,{"$f":"(D10*F10)","v":0},{"$f":"(D10*G10)","v":0}]
[]
[6,"83-001-2.1.3-0830612","spirálkorcolt lemezcső, horganyzott acéllemezből, lemez vtg. 0,5 mm, DN 160, SR-160",3,"m",null,null,{"$f":"(D12*F12)","v":0},{"$f":"(D12*G12)","v":0}]
[]
[7,"83-001-2.1.3-0830613","spirálkorcolt lemezcső, horganyzott acéllemezből, lemez vtg. 0,5 mm, DN 200, SR-200",6,"m",null,null,{"$f":"(D14*F14)","v":0},{"$f":"(D14*G14)","v":0}]
[]
[8,"83-001-2.1.2-0830611","spirálkorcolt lemezcső, horganyzott acéllemezből, lemez vtg. 0,6 mm, DN 250, SR-250",9,"m",null,null,{"$f":"(D16*F16)","v":0},{"$f":"(D16*G16)","v":0}]
[]
[9,"83-001-2.1.3-0830612","spirálkorcolt lemezcső, horganyzott acéllemezből, lemez vtg. 0,6 mm, DN 315, SR-315",6,"m",null,null,{"$f":"(D18*F18)","v":0},{"$f":"(D18*G18)","v":0}]
[]
[10,"83-001-2.1.3-0830613","spirálkorcolt lemezcső, horganyzott acéllemezből, lemez vtg. 0,6 mm, DN 400, SR-400",6,"m",null,null,{"$f":"(D20*F20)","v":0},{"$f":"(D20*G20)","v":0}]
[]
[11,"83-001-2.3.3.1-0869056","horganyzott acéllemez idomok, spirálkorcolt vagy hajlítható lemezcsőhöz, elágazó  T-idom, gumitömítéssel, horganyzott acéllemezből, DN 400/250, TCPU-400-250",2,"db",null,null,{"$f":"(D22*F22)","v":0},{"$f":"(D22*G22)","v":0}]
[]
[12,"83-001-2.3.3.1-0869056","horganyzott acéllemez idomok, spirálkorcolt vagy hajlítható lemezcsőhöz, elágazó  T-idom, gumitömítéssel, horganyzott acéllemezből, DN 315, TCPU-315",1,"db",null,null,{"$f":"(D24*F24)","v":0},{"$f":"(D24*G24)","v":0}]
[]
[13,"83-001-2.3.3.1-","elágazó  T-idom, gumitömítéssel, horganyzott acéllemezből, DN 250, TCPU-250",1,"db",null,null,{"$f":"(D26*F26)","v":0},{"$f":"(D26*G26)","v":0}]
[]
[14,"83-001-2.3.3.1-","elágazó  T-idom, gumitömítéssel, horganyzott acéllemezből, DN 250/200, TCPU-250-200",1,"db",null,null,{"$f":"(D28*F28)","v":0},{"$f":"(D28*G28)","v":0}]
[]
[15,"83-001-2.3.3.1-","elágazó  T-idom, gumitömítéssel, horganyzott acéllemezből, DN 200, TCPU-200",1,"db",null,null,{"$f":"(D30*F30)","v":0},{"$f":"(D30*G30)","v":0}]
[]
[16,"83-001-2.3.3.1-","elágazó  T-idom, gumitömítéssel, horganyzott acéllemezből, DN 160/100, TCPU-160-100",2,"db",null,null,{"$f":"(D32*F32)","v":0},{"$f":"(D32*G32)","v":0}]
[]
[17,"83-001-2.3.3.2-","szűkítő idom koncentrikus szűkítő idom, gumitömítéssel, idomkapcsolós végződéssel, horganyzott acéllemezből, DN 400/315, RCFU-400-315",3,"db",null,null,{"$f":"(D34*F34)","v":0},{"$f":"(D34*G34)","v":0}]
[]
[18,"83-001-2.3.3.2-","szűkítő idom koncentrikus szűkítő idom, gumitömítéssel, idomkapcsolós végződéssel, horganyzott acéllemezből, DN 315/250, RCFU-315-250",2,"db",null,null,{"$f":"(D36*F36)","v":0},{"$f":"(D36*G36)","v":0}]
[]
[19,"83-001-2.3.2.5-","szűkítő idom koncentrikus szűkítő idom, gumitömítéssel, idomkapcsolós végződéssel, horganyzott acéllemezből, DN 250/200, RCFU-250-200",1,"db",null,null,{"$f":"(D38*F38)","v":0},{"$f":"(D38*G38)","v":0}]
[]
[20,"83-001-2.3.2.5-","szűkítő idom koncentrikus szűkítő idom, gumitömítéssel, idomkapcsolós végződéssel, horganyzott acéllemezből, DN 250/160, RCFU-250-160",1,"db",null,null,{"$f":"(D40*F40)","v":0},{"$f":"(D40*G40)","v":0}]
[]
[21,"83-001-2.3.2.5-","szűkítő idom koncentrikus szűkítő idom, gumitömítéssel, idomkapcsolós végződéssel, horganyzott acéllemezből, DN 200/160, RCFU-200-160",1,"db",null,null,{"$f":"(D42*F42)","v":0},{"$f":"(D42*G42)","v":0}]
[]
[22,"83-001-2.3.2.5-","szűkítő idom koncentrikus szűkítő idom, gumitömítéssel, idomkapcsolós végződéssel, horganyzott acéllemezből, DN 200/100, RCFU-200-100",1,"db",null,null,{"$f":"(D44*F44)","v":0},{"$f":"(D44*G44)","v":0}]
[]
[23,"83-001-2.3.2.5-","szűkítő idom koncentrikus szűkítő idom, gumitömítéssel, idomkapcsolós végződéssel, horganyzott acéllemezből, DN 160/100, RCFU-160-100",2,"db",null,null,{"$f":"(D46*F46)","v":0},{"$f":"(D46*G46)","v":0}]
[]
[24,"83-001-2.3.3.5-0868622","idomkapcsoló elem,  horganyzott acéllemezből, DN 400, MF-400",1,"db",null,null,{"$f":"(D48*F48)","v":0},{"$f":"(D48*G48)","v":0}]
[]
[25,"83-001-2.3.3.5-","idomkapcsoló elem,  horganyzott acéllemezből, DN 315, MF-315",1,"db",null,null,{"$f":"(D50*F50)","v":0},{"$f":"(D50*G50)","v":0}]
[]
[26,"83-001-2.3.3.5-","idomkapcsoló elem,  horganyzott acéllemezből, DN 250, MF-250",4,"db",null,null,{"$f":"(D52*F52)","v":0},{"$f":"(D52*G52)","v":0}]
[]
[27,"83-001-2.3.3.5-","idomkapcsoló elem,  horganyzott acéllemezből, DN 200, MF-200",2,"db",null,null,{"$f":"(D54*F54)","v":0},{"$f":"(D54*G54)","v":0}]
[]
[28,"83-001-2.3.3.5-","idomkapcsoló elem,  horganyzott acéllemezből, DN 160, MF-160",2,"db",null,null,{"$f":"(D56*F56)","v":0},{"$f":"(D56*G56)","v":0}]
[]
[29,"83-001-2.3.3.5-","csőkapcsoló elem,  horganyzott acéllemezből, DN 100, MF-100",2,"db",null,null,{"$f":"(D58*F58)","v":0},{"$f":"(D58*G58)","v":0}]
[]
[30,"83-001-2.3.2.8-","90°-os könyök idom, gumitömítéssel, horganyzott acéllemezből, DN 100, BU-100-90",10,"db",null,null,{"$f":"(D60*F60)","v":0},{"$f":"(D60*G60)","v":0}]
[]
[31,"83-001-2.3.2.8-","45° -os ívidom, gumitömítéssel, horganyzott acéllemezből, DN 100, BU-100-45",2,"db",null,null,{"$f":"(D62*F62)","v":0},{"$f":"(D62*G62)","v":0}]
[]
[32,"83-001-2.3.2.8-","45° -os ívidom, gumitömítéssel, horganyzott acéllemezből, DN 160, BU-160-45",4,"db",null,null,{"$f":"(D64*F64)","v":0},{"$f":"(D64*G64)","v":0}]
[]
[33,"83-001-2.3.2.8-0868021","90°-os könyök idom, gumitömítéssel, horganyzott acéllemezből, DN 250, BU-250-90",1,"db",null,null,{"$f":"(D66*F66)","v":0},{"$f":"(D66*G66)","v":0}]
[]
[34,"83-001-2.3.3.9-0869588","egyéb idomok, kiegészítő elemek beömlő nyílás (madárhálós csővég) horganyzott acéllemezből, DN 400, HN-400",1,"db",null,null,{"$f":"(D68*F68)","v":0},{"$f":"(D68*G68)","v":0}]
[]
[35,"83-001-2.3.3.9-","egyéb idomok, kiegészítő elemek beömlő nyílás (madárhálós csővég) horganyzott acéllemezből, DN 250, HN-250",1,"db",null,null,{"$f":"(D70*F70)","v":0},{"$f":"(D70*G70)","v":0}]
[]
[36,"83-001-1.1.3.1-","Négyszög keresztmetszetű légrács szerelése lemezcsatornára, rácsfogadó idommal, csővég lezárással, felületnagyság: 0,10 m²-ig aprólamellás légrács 2 soros, klipszes vagy csavaros rögzítéssel, SHVN 300 X 100, LxH=300x100 mm, ",6,"db",null,null,{"$f":"(D72*F72)","v":0},{"$f":"(D72*G72)","v":0}]
[]
[37,"83-002-1.4.1.3-","Négyszög keresztmetszetű mennyezeti befúvók, vagy elszívók felszerelése, légcsatornára, ill. csatlakozó dobozzal, oldalcsatlakozással, szeleppel, hg.acél,VWR-P1-250 csatl dob. + VWR-3A-600/24 kazettás befúvó",3,"db",null,null,{"$f":"(D74*F74)","v":0},{"$f":"(D74*G74)","v":0}]
[]
[38,"83-002-1.4.1.3-","Négyszög keresztmetszetű mennyezeti befúvók, vagy elszívók felszerelése, légcsatornára, ill. csatlakozó dobozzal, oldalcsatlakozással, szeleppel, hg.acél,VWR-P1-200 + VWR-3A-600/16",1,"db",null,null,{"$f":"(D76*F76)","v":0},{"$f":"(D76*G76)","v":0}]
[]
[39,"83-007-2.4.2.2-","Légszűrők, légtisztítók elhelyezése, légszűrő kör keresztmetszetű, járókerék-átmérő: 200 mm felett\nCAIROX dobozos légszűrő, G4-es lap vagy zsákos szűrővel, FL...-B 400, ",1,"db",null,null,{"$f":"(D78*F78)","v":0},{"$f":"(D78*G78)","v":0}]
[]
[40,"83-021-1.11.3-","kör keresztmetszetű elektromos fűtő kalorifer. Kétlépcsős túlfűtés elleni védelemmel ellátott (50 és 100 °C elérésekor). A kívánt minimális légsebesség a kaloriferen 1.5 m/s. A beépítési méret NA 400 mm, a teljesítménye 1200 W. Elektromos betáplálás: 230 Volt AC. beépített nyomáskapcsolóval. elektromos bekötés nélkül,",1,"db",null,null,{"$f":"(D80*F80)","v":0},{"$f":"(D80*G80)","v":0}]
[]
[41,"83-006-3.2.1-","Axiális és félaxiális ventilátor elhelyezése, csőbe köthető axiál és félaxiál ventilátor, járókerék-átmérő: 355 mm-ig\nTT MIX Silent 250/2 közép nyomású axiális csőventilátor, 1900m3/h, 230V 1fázis, 2fokozatú szabályzóval",1,"db",null,null,{"$f":"(D82*F82)","v":0},{"$f":"(D82*G82)","v":0}]
[]
[42,"83-004-2.2-","körkeresztm. hangcsillapító gumit. hg.acél, DN 250/600, SLU-250-600-50",1,"db",null,null,{"$f":"(D84*F84)","v":0},{"$f":"(D84*G84)","v":0}]
[]
[43,null,"Légtechnikai és szellőző berendezések vezetékeinek hő- és hangszigetelése\n(ívek, idomok, szerelvények szigetelése és burkolás nélkül), kör keresztmetszetű,\nszintetikus gumi alapú kaucsuk tekerccsel nem öntapadós kialakítással,\ncsupasz kivitelben, ragasztással, öntapadó ragasztó szalag lezárással,\nNÁ 108 mm csőátmérő felett Lap tekercsben, falvastagság: 19 mm",20,"m2",null,null,{"$f":"(D86*F86)","v":0},{"$f":"(D86*G86)","v":0}]
[]
[44,"K-tétel","Acél segédtartó szerkezet, veentilátor részére, idomacélból, felületkezeléssel, összeállítva, felszerelve előirányzat",1,"klt",null,null,{"$f":"(D88*F88)","v":0},{"$f":"(D88*G88)","v":0}]
[]
[45,"82-016-6.1.1-0461113","Felirati táblák elhelyezése 1 vagy 2 soros, maximum 20x15 cm",5,"db",null,null,{"$f":"(D90*F90)","v":0},{"$f":"(D90*G90)","v":0}]
[]
[46,"83-991-001-001","Légcsatorna hálózat és tartozékainak üzempróbái és beszabályozása, vezetékrendszer tömörségi vizsgálata",1,"db",null,null,{"$f":"(D92*F92)","v":0},{"$f":"(D92*G92)","v":0}]
[]
[47,"83-991-001-004","A teljes légtechnikai rendszer próbaüzeme, jegyzőkönyv készítéssel",1,"db",null,null,{"$f":"(D94*F94)","v":0},{"$f":"(D94*G94)","v":0}]
[]
[48,"82-999-241-001","Légtechnika szerelési munkák átadás-átvételi eljárásával kapcsolatos költségek, átadási dokumentáció készítés",1,"db",null,null,{"$f":"(D96*F96)","v":0},{"$f":"(D96*G96)","v":0}]
[]
[49,"82-999-241-002","átadási eljárás lefolytatása",1,"db",null,null,{"$f":"(D98*F98)","v":0},{"$f":"(D98*G98)","v":0}]
[]
[50,"82-999-241-003","kezelési utasítás készítése",1,"db",null,null,{"$f":"(D100*F100)","v":0},{"$f":"(D100*G100)","v":0}]
[]
[51,"82-999-241-004","kezelésre vonatkozó kioktatás",1,"db",null,null,{"$f":"(D102*F102)","v":0},{"$f":"(D102*G102)","v":0}]
[]
[52,"19-010-","Általános teendők előkészítés szakaszában, légtechnikai tervdokumentáció elkészítése",1,"db",null,null,{"$f":"(D104*F104)","v":0},{"$f":"(D104*G104)","v":0}]
[]
[53,"19-010-1.21.2","Általános teendők befejezés szakaszában, megvalósulási tervdokumentáció elkészítése",1,"db",null,null,{"$f":"(D106*F106)","v":0},{"$f":"(D106*G106)","v":0}]
[]
[null,null,"Összesen:",{"$nulls":4},{"$f":"SUM(H2:H106)","v":0},{"$f":"SUM(I2:I106)","v":0}]